Publisher Label,Publisher URI,"Supplier","Net Amount (£)","Organisational Unit","Merchant Category Code","Purpose","Payment Date"
"Wolverhampton City Council","http://opendatacommunities.org/id/metropolitan-district-council/wolverhampton","Virgin Trains","165.00","AES Staff Development","4112","Public Transport","31/01/2017"
"Wolverhampton City Council","http://opendatacommunities.org/id/metropolitan-district-council/wolverhampton","SCREWFIX DIRECT","75.79","Statutory Services (10RM)","5211","Materials","31/01/2017"
"Wolverhampton City Council","http://opendatacommunities.org/id/metropolitan-district-council/wolverhampton","Trainline","41.11","CIN/CP Social Work Unit - Area 8","4112","Public Transport","31/01/2017"
"Wolverhampton City Council","http://opendatacommunities.org/id/metropolitan-district-council/wolverhampton","B&M RETAIL","7.95","EIP Locality 2","5310","Equipment - Purchase","31/01/2017"
"Wolverhampton City Council","http://opendatacommunities.org/id/metropolitan-district-council/wolverhampton","DUNELM (SOFT FURNISHIN","24.77","EIP Locality 2","5714","Equipment - Purchase","31/01/2017"
"Wolverhampton City Council","http://opendatacommunities.org/id/metropolitan-district-council/wolverhampton","SMYTHS TOYS","104.12","EIP Locality 2","5945","Equipment - Purchase","31/01/2017"
"Wolverhampton City Council","http://opendatacommunities.org/id/metropolitan-district-council/wolverhampton","TESCO STORES 5194","97.38","Towers Outdoor Education Centre","5411","Provisions (Not for resale)","31/01/2017"
"Wolverhampton City Council","http://opendatacommunities.org/id/metropolitan-district-council/wolverhampton","THE RED HOUSE","174.88","Neighbourhood Management Central","5611","Equipment - Purchase","31/01/2017"
"Wolverhampton City Council","http://opendatacommunities.org/id/metropolitan-district-council/wolverhampton","PAYPAL  SOCIETYFORP","118.80","Capital Programme Team","8999","Services - Professional Fees","31/01/2017"
"Wolverhampton City Council","http://opendatacommunities.org/id/metropolitan-district-council/wolverhampton","Trainline","154.53","Inclusion Support","4112","Public Transport","31/01/2017"
"Wolverhampton City Council","http://opendatacommunities.org/id/metropolitan-district-council/wolverhampton","ASDA HOME SHOPPING","-3.00","Ernest Bold Court","5411","Provisions (Not for resale)","31/01/2017"
"Wolverhampton City Council","http://opendatacommunities.org/id/metropolitan-district-council/wolverhampton","ASDA HOME SHOPPING","-0.42","Ernest Bold Court","5411","Provisions (Not for resale)","31/01/2017"
"Wolverhampton City Council","http://opendatacommunities.org/id/metropolitan-district-council/wolverhampton","ASDA HOME SHOPPING","86.07","Ernest Bold Court","5411","Provisions (Not for resale)","31/01/2017"
"Wolverhampton City Council","http://opendatacommunities.org/id/metropolitan-district-council/wolverhampton","SAINSBURYS SACAT (2340","4.17","Road Safety","5411","Provisions (Not for resale)","31/01/2017"
"Wolverhampton City Council","http://opendatacommunities.org/id/metropolitan-district-council/wolverhampton","NOTEMACHINE","150.00","Mental Health Assessment & Care Mgmt","6011","Financial Assistance In Exceptional Circ","31/01/2017"
"Wolverhampton City Council","http://opendatacommunities.org/id/metropolitan-district-council/wolverhampton","MERCURE WOLVERHAMPTON","482.00","Adoption and Residence Team & Allowances","7011","Services - Supplies & Services to users","31/01/2017"
"Wolverhampton City Council","http://opendatacommunities.org/id/metropolitan-district-council/wolverhampton","NETWORK WEST MIDLANDS","34.00","IMPACT","9399","Client Transport","31/01/2017"
"Wolverhampton City Council","http://opendatacommunities.org/id/metropolitan-district-council/wolverhampton","ASDA HOME SHOPPING","-5.58","Upper Pendeford Farm Childrens Home","5411","Provisions (Not for resale)","31/01/2017"
"Wolverhampton City Council","http://opendatacommunities.org/id/metropolitan-district-council/wolverhampton","ASDA HOME SHOPPING","-4.60","Upper Pendeford Farm Childrens Home","5411","Provisions (Not for resale)","31/01/2017"
"Wolverhampton City Council","http://opendatacommunities.org/id/metropolitan-district-council/wolverhampton","ASDA HOME SHOPPING","228.83","Upper Pendeford Farm Childrens Home","5411","Provisions (Not for resale)","31/01/2017"
"Wolverhampton City Council","http://opendatacommunities.org/id/metropolitan-district-council/wolverhampton","W M MORRISONS.COM","125.27","Discretionary Fund","5411","Materials","31/01/2017"
"Wolverhampton City Council","http://opendatacommunities.org/id/metropolitan-district-council/wolverhampton","PUMPKIN CAFE","3.30","Headstart Phase 3","5814","Subsistence","31/01/2017"
"Wolverhampton City Council","http://opendatacommunities.org/id/metropolitan-district-council/wolverhampton","UOM LEARNING COMMONS A","2.25","Headstart Phase 3","5812","Subsistence","31/01/2017"
"Wolverhampton City Council","http://opendatacommunities.org/id/metropolitan-district-council/wolverhampton","Amazon UK Marketplace","119.25","Headstart Wolverhampton","5942","Books","31/01/2017"
"Wolverhampton City Council","http://opendatacommunities.org/id/metropolitan-district-council/wolverhampton","Amazon UK Marketplace","0.01","Headstart Wolverhampton","5942","Books","31/01/2017"
"Wolverhampton City Council","http://opendatacommunities.org/id/metropolitan-district-council/wolverhampton","Amazon UK Marketplace","14.98","Headstart Phase 3","5942","Books","31/01/2017"
"Wolverhampton City Council","http://opendatacommunities.org/id/metropolitan-district-council/wolverhampton","SCREWFIX DIRECT","31.48","Wolverhampton Indoor and Open Market","5211","Materials","31/01/2017"
"Wolverhampton City Council","http://opendatacommunities.org/id/metropolitan-district-council/wolverhampton","G & M HALE (SUNDRIES)","12.50","Creative Studies Delivery Area","5992","Materials for resale","31/01/2017"
"Wolverhampton City Council","http://opendatacommunities.org/id/metropolitan-district-council/wolverhampton","G & M HALE (SUNDRIES)","23.20","Discretionary Fund","5992","Materials","31/01/2017"
"Wolverhampton City Council","http://opendatacommunities.org/id/metropolitan-district-council/wolverhampton","G & M HALE LTD","62.00","Discretionary Fund","5992","Materials","31/01/2017"
"Wolverhampton City Council","http://opendatacommunities.org/id/metropolitan-district-council/wolverhampton","G & M HALE LTD","16.40","Creative Studies Delivery Area","5992","Materials","31/01/2017"
"Wolverhampton City Council","http://opendatacommunities.org/id/metropolitan-district-council/wolverhampton","G & M HALE LTD","97.40","Discretionary Fund","5992","Materials","31/01/2017"
"Wolverhampton City Council","http://opendatacommunities.org/id/metropolitan-district-council/wolverhampton","SHROPSHIRE COUNCIL","22.00","CIN/CP S17 SW Unit - Area 5","8220","Training Expenses","31/01/2017"
"Wolverhampton City Council","http://opendatacommunities.org/id/metropolitan-district-council/wolverhampton","Amazon UK Marketplace","6.29","Fleet Management","5942","Equipment - Purchase","31/01/2017"
"Wolverhampton City Council","http://opendatacommunities.org/id/metropolitan-district-council/wolverhampton","SAINSBURYS","300.00","Childrens with Disabilities Team","6011","Financial Assistance In Exceptional Circ","31/01/2017"
"Wolverhampton City Council","http://opendatacommunities.org/id/metropolitan-district-council/wolverhampton","Trainline","98.53","Adoption and Residence Team & Allowances","4112","Public Transport","31/01/2017"
"Wolverhampton City Council","http://opendatacommunities.org/id/metropolitan-district-council/wolverhampton","WWW.ABSORBEEZ.COM","175.12","Collections & Conservation","5085","Equipment - Purchase","31/01/2017"
"Wolverhampton City Council","http://opendatacommunities.org/id/metropolitan-district-council/wolverhampton","MICROSOFT    STORE","79.99","Headstart Wolverhampton","5816","Computing - Purchase of Software","30/01/2017"
"Wolverhampton City Council","http://opendatacommunities.org/id/metropolitan-district-council/wolverhampton","Amazon UK Marketplace","94.98","Headstart Phase 3","5942","Furniture","30/01/2017"
"Wolverhampton City Council","http://opendatacommunities.org/id/metropolitan-district-council/wolverhampton","Amazon UK Marketplace","33.00","Headstart Wolverhampton","5942","Books","30/01/2017"
"Wolverhampton City Council","http://opendatacommunities.org/id/metropolitan-district-council/wolverhampton","Amazon UK Marketplace","170.24","Headstart Phase 3","5942","Equipment - Purchase","30/01/2017"
"Wolverhampton City Council","http://opendatacommunities.org/id/metropolitan-district-council/wolverhampton","CUMMINGS BROTHERS LOCK","7.92","Hickman Avenue Depot","7399","R&M - Departmental planned (external)","30/01/2017"
"Wolverhampton City Council","http://opendatacommunities.org/id/metropolitan-district-council/wolverhampton","Amazon UK Marketplace","37.49","CIN/CP Social Work Unit - Area 2","5942","Computing - Consumables","30/01/2017"
"Wolverhampton City Council","http://opendatacommunities.org/id/metropolitan-district-council/wolverhampton","Virgin Trains","46.00","Private Sector Housing","4112","Public Transport","30/01/2017"
"Wolverhampton City Council","http://opendatacommunities.org/id/metropolitan-district-council/wolverhampton","LOYD WEDNESFIELD WOLVE","200.00","EIP Locality 8","6011","Grant Payments","30/01/2017"
"Wolverhampton City Council","http://opendatacommunities.org/id/metropolitan-district-council/wolverhampton","TRAVELODGE","210.12","Adoption and Residence Team & Allowances","3615","Services - Supplies & Services to users","30/01/2017"
"Wolverhampton City Council","http://opendatacommunities.org/id/metropolitan-district-council/wolverhampton","ITUNES.COM/BILL","0.79","Strategic ICTS (ICT Serv Budget)","5735","Computing - Purchase of Software","30/01/2017"
"Wolverhampton City Council","http://opendatacommunities.org/id/metropolitan-district-council/wolverhampton","WILKO.COM","29.58","Head of Service - CINCP","5722","Stationery","30/01/2017"
"Wolverhampton City Council","http://opendatacommunities.org/id/metropolitan-district-council/wolverhampton","SCREWFIX DIRECT","34.98","MAST - Central Team","5211","Equipment - Purchase","30/01/2017"
"Wolverhampton City Council","http://opendatacommunities.org/id/metropolitan-district-council/wolverhampton","AMAZON UK RETAIL AMAZO","68.33","SEN Sensory Inclusion","5999","Equipment - Purchase","30/01/2017"
"Wolverhampton City Council","http://opendatacommunities.org/id/metropolitan-district-council/wolverhampton","Amazon UK Marketplace","141.00","SEN Sensory Inclusion","5942","Equipment - Purchase","30/01/2017"
"Wolverhampton City Council","http://opendatacommunities.org/id/metropolitan-district-council/wolverhampton","Amazon UK Marketplace","99.80","SEN Sensory Inclusion","5942","Equipment - Purchase","30/01/2017"
"Wolverhampton City Council","http://opendatacommunities.org/id/metropolitan-district-council/wolverhampton","E01510300000000","40.00","Delivery & OCE Development","6011","Financial Assistance In Exceptional Circ","30/01/2017"
"Wolverhampton City Council","http://opendatacommunities.org/id/metropolitan-district-council/wolverhampton","Amazon UK Marketplace","13.48","Communications & Marketing - General","5942","Equipment - Purchase","30/01/2017"
"Wolverhampton City Council","http://opendatacommunities.org/id/metropolitan-district-council/wolverhampton","WM MORRISONS","4.74","Safeguarding Board - Childrens","5411","Provisions (Not for resale)","30/01/2017"
"Wolverhampton City Council","http://opendatacommunities.org/id/metropolitan-district-council/wolverhampton","W M MORRISON PLC","19.21","Headstart Wolverhampton","5411","Provisions (Not for resale)","30/01/2017"
"Wolverhampton City Council","http://opendatacommunities.org/id/metropolitan-district-council/wolverhampton","Amazon UK Marketplace","121.98","Headstart Wolverhampton","5942","Books","30/01/2017"
"Wolverhampton City Council","http://opendatacommunities.org/id/metropolitan-district-council/wolverhampton","Amazon UK Marketplace","9.29","SEN Sensory Inclusion","5942","Equipment - Purchase","30/01/2017"
"Wolverhampton City Council","http://opendatacommunities.org/id/metropolitan-district-council/wolverhampton","THE INSTITUTE FOR OUTD","152.00","Towers Outdoor Education Centre","8398","Equipment - Purchase","30/01/2017"
"Wolverhampton City Council","http://opendatacommunities.org/id/metropolitan-district-council/wolverhampton","MARKS&SPENCER PLC SACA","10.80","Children & Young People Support Costs","5411","Provisions (Not for resale)","30/01/2017"
"Wolverhampton City Council","http://opendatacommunities.org/id/metropolitan-district-council/wolverhampton","Wix.com","279.39","Technical Support","5817","Computing - Purchase of Software","30/01/2017"
"Wolverhampton City Council","http://opendatacommunities.org/id/metropolitan-district-council/wolverhampton","123 REG R/T","13.98","Technical Support","5968","Subscriptions","30/01/2017"
"Wolverhampton City Council","http://opendatacommunities.org/id/metropolitan-district-council/wolverhampton","AMAZON UK RETAIL AMAZO","20.83","Learning Technologies","5999","Equipment - Purchase","30/01/2017"
"Wolverhampton City Council","http://opendatacommunities.org/id/metropolitan-district-council/wolverhampton","ASDA HOME SHOPPING","-0.31","Ernest Bold Court","5411","Provisions (Not for resale)","30/01/2017"
"Wolverhampton City Council","http://opendatacommunities.org/id/metropolitan-district-council/wolverhampton","ASDA HOME SHOPPING","92.73","Ernest Bold Court","5411","Provisions (Not for resale)","30/01/2017"
"Wolverhampton City Council","http://opendatacommunities.org/id/metropolitan-district-council/wolverhampton","WOLVERHAMPTON RACECOUR","187.00","Environmental Health - Pub Prot - Gen","7011","Accommodation Costs","30/01/2017"
"Wolverhampton City Council","http://opendatacommunities.org/id/metropolitan-district-council/wolverhampton","ARGOS RETAIL GROUP","148.94","CIN/CP S17 SW Unit - Area 5","5310","Financial Assistance In Exceptional Circ","30/01/2017"
"Wolverhampton City Council","http://opendatacommunities.org/id/metropolitan-district-council/wolverhampton","HOMEZONE","38.87","LAC Transitions Team","5211","Client Allowances","30/01/2017"
"Wolverhampton City Council","http://opendatacommunities.org/id/metropolitan-district-council/wolverhampton","IKEA LIMITED","43.83","Children & Family Contact Services","5712","Equipment - Purchase","30/01/2017"
"Wolverhampton City Council","http://opendatacommunities.org/id/metropolitan-district-council/wolverhampton","SAINSBURYS 0722","18.00","SEN Early Years Team","5411","Equipment - Purchase","30/01/2017"
"Wolverhampton City Council","http://opendatacommunities.org/id/metropolitan-district-council/wolverhampton","THE BIRMINGHAM HOTEL","100.00","Assessment Team (West)","7011","Accommodation Costs","30/01/2017"
"Wolverhampton City Council","http://opendatacommunities.org/id/metropolitan-district-council/wolverhampton","EDREAMS","110.86","CIN/CP S17 SW Unit - Area 3","4722","Public Transport","30/01/2017"
"Wolverhampton City Council","http://opendatacommunities.org/id/metropolitan-district-council/wolverhampton","Amazon UK Marketplace","22.99","Licensing - General","5942","Equipment - Purchase","30/01/2017"
"Wolverhampton City Council","http://opendatacommunities.org/id/metropolitan-district-council/wolverhampton","Amazon UK Marketplace","556.58","Licensing - General","5942","Equipment - Purchase","30/01/2017"
"Wolverhampton City Council","http://opendatacommunities.org/id/metropolitan-district-council/wolverhampton","Amazon UK Marketplace","139.80","Licensing - General","5942","Equipment - Purchase","30/01/2017"
"Wolverhampton City Council","http://opendatacommunities.org/id/metropolitan-district-council/wolverhampton","WWW.PRINTERLAND.CO","894.00","Communications & Marketing - General","7372","Computing - Purchase of Software","27/01/2017"
"Wolverhampton City Council","http://opendatacommunities.org/id/metropolitan-district-council/wolverhampton","Trainline","236.23","Assistant Director - Public Health","4112","Public Transport","27/01/2017"
"Wolverhampton City Council","http://opendatacommunities.org/id/metropolitan-district-council/wolverhampton","Trainline","117.86","Assistant Director - Public Health","4112","Public Transport","27/01/2017"
"Wolverhampton City Council","http://opendatacommunities.org/id/metropolitan-district-council/wolverhampton","WWW.CHELSEAMAGS.SUBSCR","44.95","Creative Studies Delivery Area","2741","Publications","27/01/2017"
"Wolverhampton City Council","http://opendatacommunities.org/id/metropolitan-district-council/wolverhampton","CUMMINGS BROTHERS LOCK","4.17","Statutory Services (10RM)","7399","R&M - Departmental planned (external)","27/01/2017"
"Wolverhampton City Council","http://opendatacommunities.org/id/metropolitan-district-council/wolverhampton","CUMMINGS BROTHERS LOCK","20.83","Caretakers Community Centre","7399","R&M - Departmental planned (external)","27/01/2017"
"Wolverhampton City Council","http://opendatacommunities.org/id/metropolitan-district-council/wolverhampton","CARVER/WOLVERHAMPTON/L","47.36","Bilston Town Hall","5211","Equipment - Purchase","27/01/2017"
"Wolverhampton City Council","http://opendatacommunities.org/id/metropolitan-district-council/wolverhampton","BLAS AR FWYD CYF","67.15","Towers Outdoor Education Centre","5812","Provisions (Not for resale)","27/01/2017"
"Wolverhampton City Council","http://opendatacommunities.org/id/metropolitan-district-council/wolverhampton","KEY INDUSTRIAL EQUIPME","336.00","Towers Outdoor Education Centre","5072","Equipment - Purchase","27/01/2017"
"Wolverhampton City Council","http://opendatacommunities.org/id/metropolitan-district-council/wolverhampton","UXPIN.COM","63.13","City Direct","7372","Computing - Purchase of Software","27/01/2017"
"Wolverhampton City Council","http://opendatacommunities.org/id/metropolitan-district-council/wolverhampton","SCREWFIX DIRECT","7.32","Public Conveniences","5211","R&M - Departmental planned (external)","27/01/2017"
"Wolverhampton City Council","http://opendatacommunities.org/id/metropolitan-district-council/wolverhampton","WEST MIDLANDS TRAV","54.50","IMPACT","4131","Public Transport","27/01/2017"
"Wolverhampton City Council","http://opendatacommunities.org/id/metropolitan-district-council/wolverhampton","NATWEST BANK","10.00","IMPACT","6011","Financial Assistance In Exceptional Circ","27/01/2017"
"Wolverhampton City Council","http://opendatacommunities.org/id/metropolitan-district-council/wolverhampton","RIBA ENTERPRISES LTD","183.33","Corporate Procurement Unit","5942","Books","27/01/2017"
"Wolverhampton City Council","http://opendatacommunities.org/id/metropolitan-district-council/wolverhampton","Amazon UK Marketplace","119.98","Learning Technologies","5999","Equipment - Purchase","27/01/2017"
"Wolverhampton City Council","http://opendatacommunities.org/id/metropolitan-district-council/wolverhampton","ASDA SUPERSTORE","28.33","EIP Locality 3","5411","Financial Assistance In Exceptional Circ","27/01/2017"
"Wolverhampton City Council","http://opendatacommunities.org/id/metropolitan-district-council/wolverhampton","ARGOS RETAIL GROUP","19.99","Civic Halls Non Direct Management A/C","5310","Equipment - Purchase","27/01/2017"
"Wolverhampton City Council","http://opendatacommunities.org/id/metropolitan-district-council/wolverhampton","Virgin Trains","36.40","Planning","4112","Public Transport","27/01/2017"
"Wolverhampton City Council","http://opendatacommunities.org/id/metropolitan-district-council/wolverhampton","Trainline","76.55","No Recourse to Public Funds - CIN/CP","4112","Public Transport","27/01/2017"
"Wolverhampton City Council","http://opendatacommunities.org/id/metropolitan-district-council/wolverhampton","Virgin Trains","10.20","Democratic Support","4112","Public Transport","27/01/2017"
"Wolverhampton City Council","http://opendatacommunities.org/id/metropolitan-district-council/wolverhampton","SAINSBURYS (2340)","20.46","Mayoral Expenses","5411","Hospitality","27/01/2017"
"Wolverhampton City Council","http://opendatacommunities.org/id/metropolitan-district-council/wolverhampton","TOOLSTATION LTD","17.32","Education Catering - General Overheads","5251","Materials","27/01/2017"
"Wolverhampton City Council","http://opendatacommunities.org/id/metropolitan-district-council/wolverhampton","WWW.TONERGIANT.CO.UK","431.64","Macmillan Welfare Rights","5943","Stationery","27/01/2017"
"Wolverhampton City Council","http://opendatacommunities.org/id/metropolitan-district-council/wolverhampton","WWW.CARESHOP.CO.UK","76.95","Ernest Bold Court","5999","Equipment - Purchase","27/01/2017"
"Wolverhampton City Council","http://opendatacommunities.org/id/metropolitan-district-council/wolverhampton","CUT KEYS DIRECT LI","23.05","Patching","7399","Equipment - Purchase","27/01/2017"
"Wolverhampton City Council","http://opendatacommunities.org/id/metropolitan-district-council/wolverhampton","IRONMONGERYONLINE","125.79","Ground Maintenance West","5251","Equipment - Purchase","27/01/2017"
"Wolverhampton City Council","http://opendatacommunities.org/id/metropolitan-district-council/wolverhampton","WICKES","52.78","Northicote Farm","5211","Materials","27/01/2017"
"Wolverhampton City Council","http://opendatacommunities.org/id/metropolitan-district-council/wolverhampton","Trainline","443.19","CIN/CP S17 SW Unit - Area 8","4112","Public Transport","27/01/2017"
"Wolverhampton City Council","http://opendatacommunities.org/id/metropolitan-district-council/wolverhampton","HM PASSPORT OFFICE","49.00","LAC Team","9399","Services - Fees and Charges","27/01/2017"
"Wolverhampton City Council","http://opendatacommunities.org/id/metropolitan-district-council/wolverhampton","HM PASSPORT OFFICE","49.00","LAC Team","9399","Services - Fees and Charges","27/01/2017"
"Wolverhampton City Council","http://opendatacommunities.org/id/metropolitan-district-council/wolverhampton","HM PASSPORT OFFICE","49.00","LAC Team","9399","Services - Fees and Charges","27/01/2017"
"Wolverhampton City Council","http://opendatacommunities.org/id/metropolitan-district-council/wolverhampton","GO CARZ","5.87","EIP Locality 5","4121","Client Transport","27/01/2017"
"Wolverhampton City Council","http://opendatacommunities.org/id/metropolitan-district-council/wolverhampton","Virgin Trains","392.00","Planning","4112","Public Transport","27/01/2017"
"Wolverhampton City Council","http://opendatacommunities.org/id/metropolitan-district-council/wolverhampton","POST OFFICE COUNTER","128.00","Safeguarding Admin Resource","9402","Comms - Postage","26/01/2017"
"Wolverhampton City Council","http://opendatacommunities.org/id/metropolitan-district-council/wolverhampton","ARGOS LTD","9.62","Telecare","5310","Equipment - Purchase","26/01/2017"
"Wolverhampton City Council","http://opendatacommunities.org/id/metropolitan-district-council/wolverhampton","Trainline","83.84","CIN/CP S17 SW Unit - Area 2","4112","Public Transport","26/01/2017"
"Wolverhampton City Council","http://opendatacommunities.org/id/metropolitan-district-council/wolverhampton","Amazon UK Marketplace","93.09","Central Baths","5942","Stationery","26/01/2017"
"Wolverhampton City Council","http://opendatacommunities.org/id/metropolitan-district-council/wolverhampton","WWW.ROMPALIMITED.COM","174.95","SEN Sensory Inclusion","5999","Equipment - Purchase","26/01/2017"
"Wolverhampton City Council","http://opendatacommunities.org/id/metropolitan-district-council/wolverhampton","TESCO STORES 5194","189.78","Towers Outdoor Education Centre","5411","Provisions (Not for resale)","26/01/2017"
"Wolverhampton City Council","http://opendatacommunities.org/id/metropolitan-district-council/wolverhampton","Amazon UK Marketplace","86.23","Towers Outdoor Education Centre","5942","Equipment - Purchase","26/01/2017"
"Wolverhampton City Council","http://opendatacommunities.org/id/metropolitan-district-council/wolverhampton","ECD LTD","-280.00","Learning Technologies","4812","Comms - Mobile Telephones","26/01/2017"
"Wolverhampton City Council","http://opendatacommunities.org/id/metropolitan-district-council/wolverhampton","ECD LTD","270.00","Learning Technologies","4812","Comms - Mobile Telephones","26/01/2017"
"Wolverhampton City Council","http://opendatacommunities.org/id/metropolitan-district-council/wolverhampton","ECD LTD","280.00","Learning Technologies","4812","Comms - Mobile Telephones","26/01/2017"
"Wolverhampton City Council","http://opendatacommunities.org/id/metropolitan-district-council/wolverhampton","THE FLOWER STALL","25.00","Mayoral Expenses","5992","Hospitality","26/01/2017"
"Wolverhampton City Council","http://opendatacommunities.org/id/metropolitan-district-council/wolverhampton","NATWEST BANK","100.00","Democratic Support","6011","Public Transport","26/01/2017"
"Wolverhampton City Council","http://opendatacommunities.org/id/metropolitan-district-council/wolverhampton","ASDA STORES 4452","14.40","Civic Centre Catering","5411","Catering","26/01/2017"
"Wolverhampton City Council","http://opendatacommunities.org/id/metropolitan-district-council/wolverhampton","UNTOUCHABLES","4.17","Education Catering - General Overheads","5231","Materials","26/01/2017"
"Wolverhampton City Council","http://opendatacommunities.org/id/metropolitan-district-council/wolverhampton","DIGITALID.CO.UK","1692.12","Civic Centre","5943","Stationery","26/01/2017"
"Wolverhampton City Council","http://opendatacommunities.org/id/metropolitan-district-council/wolverhampton","TURF WORLD LTD","200.00","Direct Schools","5261","Equipment - Purchase","26/01/2017"
"Wolverhampton City Council","http://opendatacommunities.org/id/metropolitan-district-council/wolverhampton","HMCOURTS-SERVICE.G","20.00","Mental Health Assessment & Care Mgmt","9222","Services - Fees and Charges","26/01/2017"
"Wolverhampton City Council","http://opendatacommunities.org/id/metropolitan-district-council/wolverhampton","HMCOURTS-SERVICE.G","20.00","Mental Health Assessment & Care Mgmt","9222","Services - Fees and Charges","26/01/2017"
"Wolverhampton City Council","http://opendatacommunities.org/id/metropolitan-district-council/wolverhampton","HM PASSPORT OFFICE","75.50","LAC Team","9399","Services - Fees and Charges","26/01/2017"
"Wolverhampton City Council","http://opendatacommunities.org/id/metropolitan-district-council/wolverhampton","LOYD MORR WILLENHALL","250.00","CIN/CP S17 SW Unit - Area 6","6011","Financial Assistance In Exceptional Circ","26/01/2017"
"Wolverhampton City Council","http://opendatacommunities.org/id/metropolitan-district-council/wolverhampton","RS COMPONENTS","37.51","Contemporary Gallery","5065","Equipment - Purchase","26/01/2017"
"Wolverhampton City Council","http://opendatacommunities.org/id/metropolitan-district-council/wolverhampton","THE POST OFFICE","18.33","Assessment Team (East)","9402","Comms - Postage","26/01/2017"
"Wolverhampton City Council","http://opendatacommunities.org/id/metropolitan-district-council/wolverhampton","Virgin Trains","19.10","Scrutiny & Transparency","4112","Public Transport","26/01/2017"
"Wolverhampton City Council","http://opendatacommunities.org/id/metropolitan-district-council/wolverhampton","Amazon UK Marketplace","8.28","Northicote Farm","5942","Materials","26/01/2017"
"Wolverhampton City Council","http://opendatacommunities.org/id/metropolitan-district-council/wolverhampton","Virgin Trains","19.10","Environmental Health - Pub Prot - Gen","4112","Services - Fees and Charges","26/01/2017"
"Wolverhampton City Council","http://opendatacommunities.org/id/metropolitan-district-council/wolverhampton","WILKO RETAIL LIMIT","11.00","Global Budgets","5722","Stationery","26/01/2017"
"Wolverhampton City Council","http://opendatacommunities.org/id/metropolitan-district-council/wolverhampton","Amazon UK Marketplace","36.22","Education Business Partnership","5942","Stationery","26/01/2017"
"Wolverhampton City Council","http://opendatacommunities.org/id/metropolitan-district-council/wolverhampton","Amazon UK Marketplace","13.39","Education Business Partnership","5942","Provisions (Not for resale)","26/01/2017"
"Wolverhampton City Council","http://opendatacommunities.org/id/metropolitan-district-council/wolverhampton","HOME BARGAINS","9.70","Cemeteries","5251","Equipment - Purchase","26/01/2017"
"Wolverhampton City Council","http://opendatacommunities.org/id/metropolitan-district-council/wolverhampton","UNTOUCHABLES","25.25","Cemeteries","5231","Materials","26/01/2017"
"Wolverhampton City Council","http://opendatacommunities.org/id/metropolitan-district-council/wolverhampton","SCREWFIX DIRECT","19.99","Cemeteries","5211","Equipment - Purchase","26/01/2017"
"Wolverhampton City Council","http://opendatacommunities.org/id/metropolitan-district-council/wolverhampton","SCREWFIX DIRECT","9.16","Statutory Services (10RM)","5211","R&M - Departmental planned (external)","26/01/2017"
"Wolverhampton City Council","http://opendatacommunities.org/id/metropolitan-district-council/wolverhampton","SCREWFIX DIRECT","31.04","Statutory Services (10RM)","5211","Materials","26/01/2017"
"Wolverhampton City Council","http://opendatacommunities.org/id/metropolitan-district-council/wolverhampton","THE YORK HOTEL","175.00","Adoption and Residence Team & Allowances","7011","Services - Supplies & Services to users","26/01/2017"
"Wolverhampton City Council","http://opendatacommunities.org/id/metropolitan-district-council/wolverhampton","POUNDLAND LTD 1463","3.00","Business Manager - Place","5310","Equipment - Purchase","26/01/2017"
"Wolverhampton City Council","http://opendatacommunities.org/id/metropolitan-district-council/wolverhampton","ARGOS RETAIL GROUP","15.78","EIP Locality 4","5310","Grant Payments","26/01/2017"
"Wolverhampton City Council","http://opendatacommunities.org/id/metropolitan-district-council/wolverhampton","ARGOS LTD","315.83","Strategic ICTS (ICT Serv Budget)","5310","Computing - Purchase of Hardware","26/01/2017"
"Wolverhampton City Council","http://opendatacommunities.org/id/metropolitan-district-council/wolverhampton","WWW.4X90.COM","67.14","Communications & Marketing - General","5072","Equipment - Purchase","26/01/2017"
"Wolverhampton City Council","http://opendatacommunities.org/id/metropolitan-district-council/wolverhampton","ASDA SUPERSTORE","13.91","Upper Pendeford Farm Childrens Home","5411","Provisions (Not for resale)","26/01/2017"
"Wolverhampton City Council","http://opendatacommunities.org/id/metropolitan-district-council/wolverhampton","ASDA HOME SHOPPING","-1.00","EIP Locality 5","5411","Provisions (Not for resale)","26/01/2017"
"Wolverhampton City Council","http://opendatacommunities.org/id/metropolitan-district-council/wolverhampton","ASDA HOME SHOPPING","41.23","EIP Locality 5","5411","Provisions (Not for resale)","26/01/2017"
"Wolverhampton City Council","http://opendatacommunities.org/id/metropolitan-district-council/wolverhampton","WALSALL TRAINING","290.00","AES Staff Development","8220","Training Expenses","26/01/2017"
"Wolverhampton City Council","http://opendatacommunities.org/id/metropolitan-district-council/wolverhampton","CAR PARKING OFFICE","17.20","Work Related Studies","7523","Car Allowances","26/01/2017"
"Wolverhampton City Council","http://opendatacommunities.org/id/metropolitan-district-council/wolverhampton","PAYPAL  ROYALHOUSES","38.00","Archives","5942","Books","26/01/2017"
"Wolverhampton City Council","http://opendatacommunities.org/id/metropolitan-district-council/wolverhampton","WALSALL COUNCIL","416.67","Education Business Partnership","9399","Services - Fees and Charges","25/01/2017"
"Wolverhampton City Council","http://opendatacommunities.org/id/metropolitan-district-council/wolverhampton","WALSALL COUNCIL","416.67","Education Business Partnership","9399","Services - Fees and Charges","25/01/2017"
"Wolverhampton City Council","http://opendatacommunities.org/id/metropolitan-district-council/wolverhampton","PRINTCARRIER.COM","52.00","Civic Halls Non Direct Management A/C","2741","Marketing \ Non-staff advertising","25/01/2017"
"Wolverhampton City Council","http://opendatacommunities.org/id/metropolitan-district-council/wolverhampton","THE YORK HOTEL","60.00","CIN/CP S17 SW Unit - Area 4","7011","Services - Supplies & Services to users","25/01/2017"
"Wolverhampton City Council","http://opendatacommunities.org/id/metropolitan-district-council/wolverhampton","AMAZON UK RETAIL AMAZO","7.50","Upper Pendeford Farm Childrens Home","5999","Equipment - Purchase","25/01/2017"
"Wolverhampton City Council","http://opendatacommunities.org/id/metropolitan-district-council/wolverhampton","ARGOS RETAIL GROUP","103.94","Upper Pendeford Farm Childrens Home","5310","Equipment - Purchase","25/01/2017"
"Wolverhampton City Council","http://opendatacommunities.org/id/metropolitan-district-council/wolverhampton","ASDA SUPERSTORE","23.22","CIN/CP S17 SW Unit - Area 5","5411","Provisions (Not for resale)","25/01/2017"
"Wolverhampton City Council","http://opendatacommunities.org/id/metropolitan-district-council/wolverhampton","TFM FARM & COUNTRY SUP","101.50","Northicote Farm","5399","Equipment - Purchase","25/01/2017"
"Wolverhampton City Council","http://opendatacommunities.org/id/metropolitan-district-council/wolverhampton","REGISTRARS OFFICE","40.00","Adoption and Residence Team & Allowances","8299","Services - Fees and Charges","25/01/2017"
"Wolverhampton City Council","http://opendatacommunities.org/id/metropolitan-district-council/wolverhampton","BCC REGISTER OFFIC","35.00","Adoption and Residence Team & Allowances","9399","Services - Fees and Charges","25/01/2017"
"Wolverhampton City Council","http://opendatacommunities.org/id/metropolitan-district-council/wolverhampton","ARGOS DIRECT","244.93","Fostering Team & Allowances","5310","Equipment - Purchase","25/01/2017"
"Wolverhampton City Council","http://opendatacommunities.org/id/metropolitan-district-council/wolverhampton","LOYD MORR WILLENHALL","250.00","CIN/CP S17 SW Unit - Area 6","6011","Financial Assistance In Exceptional Circ","25/01/2017"
"Wolverhampton City Council","http://opendatacommunities.org/id/metropolitan-district-council/wolverhampton","WM MORRISONS","20.00","EIP Locality 6","5411","Provisions (Not for resale)","25/01/2017"
"Wolverhampton City Council","http://opendatacommunities.org/id/metropolitan-district-council/wolverhampton","DIGITALID.CO.UK","3221.57","Strategic ICTS (ICT Serv Budget)","5943","Stationery","25/01/2017"
"Wolverhampton City Council","http://opendatacommunities.org/id/metropolitan-district-council/wolverhampton","EUROPCAR","65.51","Headstart Phase 3","3381","Hire of Vehicles","25/01/2017"
"Wolverhampton City Council","http://opendatacommunities.org/id/metropolitan-district-council/wolverhampton","PREMIER INN","89.15","Headstart Phase 3","3811","Accommodation Costs","25/01/2017"
"Wolverhampton City Council","http://opendatacommunities.org/id/metropolitan-district-council/wolverhampton","PREMIER INN","140.82","Headstart Phase 3","3811","Services - Supplies & Services to users","25/01/2017"
"Wolverhampton City Council","http://opendatacommunities.org/id/metropolitan-district-council/wolverhampton","WEST MIDLAND METRO","10.00","Wolverhampton Indoor and Open Market","4131","Public Transport","25/01/2017"
"Wolverhampton City Council","http://opendatacommunities.org/id/metropolitan-district-council/wolverhampton","ARGOS RETAIL GROUP","130.13","EIP Locality 2","5310","Equipment - Purchase","25/01/2017"
"Wolverhampton City Council","http://opendatacommunities.org/id/metropolitan-district-council/wolverhampton","TVLICENSING.CO.UK","145.50","Blakenhall Resource Centre","7392","Services - General Licences","25/01/2017"
"Wolverhampton City Council","http://opendatacommunities.org/id/metropolitan-district-council/wolverhampton","DUDLEY MBC  INTERN","10.12","LAC Team","8999","Services - Professional Fees","25/01/2017"
"Wolverhampton City Council","http://opendatacommunities.org/id/metropolitan-district-council/wolverhampton","TESCO STORES 5194","188.08","Towers Outdoor Education Centre","5411","Provisions (Not for resale)","25/01/2017"
"Wolverhampton City Council","http://opendatacommunities.org/id/metropolitan-district-council/wolverhampton","CHEMSOL CYMRU LTD","105.60","Towers Outdoor Education Centre","5199","Fixtures and Fittings - Purchases","25/01/2017"
"Wolverhampton City Council","http://opendatacommunities.org/id/metropolitan-district-council/wolverhampton","Amazon UK Marketplace","116.65","Pupil Premium","5942","Grant Payments to Individuals","25/01/2017"
"Wolverhampton City Council","http://opendatacommunities.org/id/metropolitan-district-council/wolverhampton","WAITROSE 696","15.58","Youth Offending Team","5411","Provisions (Not for resale)","25/01/2017"
"Wolverhampton City Council","http://opendatacommunities.org/id/metropolitan-district-council/wolverhampton","WAITROSE 696","81.77","Youth Offending Team","5411","Provisions (Not for resale)","25/01/2017"
"Wolverhampton City Council","http://opendatacommunities.org/id/metropolitan-district-council/wolverhampton","B&M RETAIL","230.76","LAC Transitions Team","5310","Client Allowances","25/01/2017"
"Wolverhampton City Council","http://opendatacommunities.org/id/metropolitan-district-council/wolverhampton","Amazon UK Marketplace","11.90","Central Baths","5942","Equipment - Purchase","25/01/2017"
"Wolverhampton City Council","http://opendatacommunities.org/id/metropolitan-district-council/wolverhampton","ASDA SUPERSTORE","21.60","CIN/CP S17 SW Unit - Area 3","5411","Provisions (Not for resale)","25/01/2017"
"Wolverhampton City Council","http://opendatacommunities.org/id/metropolitan-district-council/wolverhampton","ASDA SUPERSTORE","100.00","CIN/CP S17 SW Unit - Area 3","5411","Provisions (Not for resale)","25/01/2017"
"Wolverhampton City Council","http://opendatacommunities.org/id/metropolitan-district-council/wolverhampton","ASDA SUPERSTORE","200.00","CIN/CP S17 SW Unit - Area 3","5411","Provisions (Not for resale)","25/01/2017"
"Wolverhampton City Council","http://opendatacommunities.org/id/metropolitan-district-council/wolverhampton","BOOTS.COM","-6.67","Communications & Marketing - General","5912","Equipment - Purchase","25/01/2017"
"Wolverhampton City Council","http://opendatacommunities.org/id/metropolitan-district-council/wolverhampton","FACEBK G8DRLAEB92","862.70","Communications & Marketing - General","7311","Marketing \ Non-staff advertising","25/01/2017"
"Wolverhampton City Council","http://opendatacommunities.org/id/metropolitan-district-council/wolverhampton","FACEBK 3MREPB2AR2","398.66","Communications & Marketing - General","7311","Marketing \ Non-staff advertising","25/01/2017"
"Wolverhampton City Council","http://opendatacommunities.org/id/metropolitan-district-council/wolverhampton","FACEBK W8ARYBSAR2","1.79","Communications & Marketing - General","7311","Marketing \ Non-staff advertising","25/01/2017"
"Wolverhampton City Council","http://opendatacommunities.org/id/metropolitan-district-council/wolverhampton","Trainline","150.45","Intensive Family Support Team","4112","Public Transport","25/01/2017"
"Wolverhampton City Council","http://opendatacommunities.org/id/metropolitan-district-council/wolverhampton","WWW.QUALSAFE.COM","98.27","Direct Delivery Team ( L. & D.)","8299","Training Expenses","25/01/2017"
"Wolverhampton City Council","http://opendatacommunities.org/id/metropolitan-district-council/wolverhampton","Virgin Trains","995.00","Technical Support","4112","Public Transport","25/01/2017"
"Wolverhampton City Council","http://opendatacommunities.org/id/metropolitan-district-council/wolverhampton","CT WOLVERHAMPTON","40.00","CIN/CP S17 SW Unit - Area 5","8398","Financial Assistance In Exceptional Circ","25/01/2017"
"Wolverhampton City Council","http://opendatacommunities.org/id/metropolitan-district-council/wolverhampton","WALSALL COUNCIL","366.67","Education Business Partnership","9399","Services - Fees and Charges","25/01/2017"
"Wolverhampton City Council","http://opendatacommunities.org/id/metropolitan-district-council/wolverhampton","CAPITAL CLEANING (","33.44","Maintenance & Technical Materials","7349","Materials","25/01/2017"
"Wolverhampton City Council","http://opendatacommunities.org/id/metropolitan-district-council/wolverhampton","PREMIER INN","155.00","CIN/CP S17 SW Unit - Area 3","3811","Services - Supplies & Services to users","25/01/2017"
"Wolverhampton City Council","http://opendatacommunities.org/id/metropolitan-district-council/wolverhampton","HIGHFIELD HOUSE HO","315.00","No Recourse to Public Funds - CIN/CP","7011","Services - Supplies & Services to users","25/01/2017"
"Wolverhampton City Council","http://opendatacommunities.org/id/metropolitan-district-council/wolverhampton","Virgin Trains","8.40","Scrutiny & Transparency","4112","Public Transport","25/01/2017"
"Wolverhampton City Council","http://opendatacommunities.org/id/metropolitan-district-council/wolverhampton","TFM FARM & COUNTRY SUP","209.12","Northicote Farm","5399","Protective Clothing","25/01/2017"
"Wolverhampton City Council","http://opendatacommunities.org/id/metropolitan-district-council/wolverhampton","TFM FARM & COUNTRY SUP","247.52","Northicote Farm","5399","Materials","25/01/2017"
"Wolverhampton City Council","http://opendatacommunities.org/id/metropolitan-district-council/wolverhampton","FLYBE.COM BHSX4W       0","126.44","Leonardo Da Vinci Project","4511","Public Transport","24/01/2017"
"Wolverhampton City Council","http://opendatacommunities.org/id/metropolitan-district-council/wolverhampton","monarch.co.uk","93.37","Leonardo Da Vinci Project","4511","Public Transport","24/01/2017"
"Wolverhampton City Council","http://opendatacommunities.org/id/metropolitan-district-council/wolverhampton","Trainline","90.22","Admin & Support","4112","Public Transport","24/01/2017"
"Wolverhampton City Council","http://opendatacommunities.org/id/metropolitan-district-council/wolverhampton","Trainline","61.00","SMT - Senior Management Team","4112","Public Transport","24/01/2017"
"Wolverhampton City Council","http://opendatacommunities.org/id/metropolitan-district-council/wolverhampton","Trainline","45.90","Service Director City Economy","4112","Public Transport","24/01/2017"
"Wolverhampton City Council","http://opendatacommunities.org/id/metropolitan-district-council/wolverhampton","WAITROSE 696","9.17","EIP Locality 4","5411","Stationery","24/01/2017"
"Wolverhampton City Council","http://opendatacommunities.org/id/metropolitan-district-council/wolverhampton","WAITROSE 696","17.06","EIP Locality 4","5411","Grant Payments","24/01/2017"
"Wolverhampton City Council","http://opendatacommunities.org/id/metropolitan-district-council/wolverhampton","PETERBOROUGH ORTHODONT","120.00","LAC Transitions Team","8021","Client Allowances","24/01/2017"
"Wolverhampton City Council","http://opendatacommunities.org/id/metropolitan-district-council/wolverhampton","HMCOURTS-SERVICE.G","20.00","LAC Transitions Team","9222","Client Allowances","24/01/2017"
"Wolverhampton City Council","http://opendatacommunities.org/id/metropolitan-district-council/wolverhampton","Virgin Trains","15.20","Corporate Procurement Unit","4112","Public Transport","24/01/2017"
"Wolverhampton City Council","http://opendatacommunities.org/id/metropolitan-district-council/wolverhampton","Amazon EU","9.15","Aldersley Leisure Village","5969","Equipment - Purchase","24/01/2017"
"Wolverhampton City Council","http://opendatacommunities.org/id/metropolitan-district-council/wolverhampton","ASDA SUPERSTORE","54.11","Upper Pendeford Farm Childrens Home","5411","Provisions (Not for resale)","24/01/2017"
"Wolverhampton City Council","http://opendatacommunities.org/id/metropolitan-district-council/wolverhampton","W M MORRISONS.COM","68.41","Discretionary Fund","5411","Materials","24/01/2017"
"Wolverhampton City Council","http://opendatacommunities.org/id/metropolitan-district-council/wolverhampton","WILKO RETAIL LIMIT","2.00","Language Studies Delivery Area","5722","Equipment - Purchase","24/01/2017"
"Wolverhampton City Council","http://opendatacommunities.org/id/metropolitan-district-council/wolverhampton","TVLICENSING.CO.UK","145.50","LAC Transitions Team","7392","Client Allowances","24/01/2017"
"Wolverhampton City Council","http://opendatacommunities.org/id/metropolitan-district-council/wolverhampton","FlybeBHN6 BHN6E9","336.76","Headstart Phase 3","4511","Public Transport","24/01/2017"
"Wolverhampton City Council","http://opendatacommunities.org/id/metropolitan-district-council/wolverhampton","Trainline","152.90","Headstart Phase 3","4112","Public Transport","24/01/2017"
"Wolverhampton City Council","http://opendatacommunities.org/id/metropolitan-district-council/wolverhampton","BIRMINGHAMTELECOM","55.94","Telecare","4812","Comms - Mobile Telephones","24/01/2017"
"Wolverhampton City Council","http://opendatacommunities.org/id/metropolitan-district-council/wolverhampton","BROOKES & SONS (TA","90.00","Towers Outdoor Education Centre","5399","Equipment - Purchase","24/01/2017"
"Wolverhampton City Council","http://opendatacommunities.org/id/metropolitan-district-council/wolverhampton","G & M HALE (SUNDRIES)","21.00","Discretionary Fund","5992","Materials","24/01/2017"
"Wolverhampton City Council","http://opendatacommunities.org/id/metropolitan-district-council/wolverhampton","G & M HALE (SUNDRIES)","29.85","Creative Studies Delivery Area","5992","Materials for resale","24/01/2017"
"Wolverhampton City Council","http://opendatacommunities.org/id/metropolitan-district-council/wolverhampton","G & M HALE LTD","71.10","Creative Studies Delivery Area","5992","Materials for resale","24/01/2017"
"Wolverhampton City Council","http://opendatacommunities.org/id/metropolitan-district-council/wolverhampton","G & M HALE LTD","62.00","Discretionary Fund","5992","Materials","24/01/2017"
"Wolverhampton City Council","http://opendatacommunities.org/id/metropolitan-district-council/wolverhampton","MOUNTAIN TRAINING","50.00","Towers Outdoor Education Centre","5734","Equipment - Purchase","24/01/2017"
"Wolverhampton City Council","http://opendatacommunities.org/id/metropolitan-district-council/wolverhampton","Cross Country Trains","19.10","Commissioning Disabilities","4112","Public Transport","24/01/2017"
"Wolverhampton City Council","http://opendatacommunities.org/id/metropolitan-district-council/wolverhampton","ASDA SUPERSTORE","11.08","EIP Locality 3","5411","Provisions (Not for resale)","24/01/2017"
"Wolverhampton City Council","http://opendatacommunities.org/id/metropolitan-district-council/wolverhampton","ASDA SUPERSTORE","30.95","EIP Locality 3","5411","Provisions (Not for resale)","24/01/2017"
"Wolverhampton City Council","http://opendatacommunities.org/id/metropolitan-district-council/wolverhampton","B & Q 1243","9.44","Ernest Bold Court","5211","Equipment - R & M","24/01/2017"
"Wolverhampton City Council","http://opendatacommunities.org/id/metropolitan-district-council/wolverhampton","ASDA HOME SHOPPING","-1.00","Ernest Bold Court","5411","Provisions (Not for resale)","24/01/2017"
"Wolverhampton City Council","http://opendatacommunities.org/id/metropolitan-district-council/wolverhampton","ASDA HOME SHOPPING","-4.17","Ernest Bold Court","5411","Provisions (Not for resale)","24/01/2017"
"Wolverhampton City Council","http://opendatacommunities.org/id/metropolitan-district-council/wolverhampton","ASDA HOME SHOPPING","102.55","Ernest Bold Court","5411","Provisions (Not for resale)","24/01/2017"
"Wolverhampton City Council","http://opendatacommunities.org/id/metropolitan-district-council/wolverhampton","WOLVES CC","10.00","Specialist Support Service - North","9399","Client Transport","24/01/2017"
"Wolverhampton City Council","http://opendatacommunities.org/id/metropolitan-district-council/wolverhampton","WM MORRISONS","5.15","Safeguarding Admin Resource","5411","Provisions (Not for resale)","24/01/2017"
"Wolverhampton City Council","http://opendatacommunities.org/id/metropolitan-district-council/wolverhampton","WICKES","12.48","Car Parks Operational Staff","5211","Equipment - R & M","24/01/2017"
"Wolverhampton City Council","http://opendatacommunities.org/id/metropolitan-district-council/wolverhampton","PO BUNKER S HILL","40.00","Ernest Bold Court","6011","Financial Assistance In Exceptional Circ","24/01/2017"
"Wolverhampton City Council","http://opendatacommunities.org/id/metropolitan-district-council/wolverhampton","Amazon UK Marketplace","1.86","Upper Pendeford Farm Childrens Home","5942","Books","24/01/2017"
"Wolverhampton City Council","http://opendatacommunities.org/id/metropolitan-district-council/wolverhampton","G & M HALE LTD","124.00","Discretionary Fund","5992","Materials","24/01/2017"
"Wolverhampton City Council","http://opendatacommunities.org/id/metropolitan-district-council/wolverhampton","E.ON ENERGY SOLUTIONS","200.00","CIN/CP S17 SW Unit - Area 5","4900","Electricity","24/01/2017"
"Wolverhampton City Council","http://opendatacommunities.org/id/metropolitan-district-council/wolverhampton","LAMBDATEK","306.63","Revenues","5732","Equipment - Purchase","24/01/2017"
"Wolverhampton City Council","http://opendatacommunities.org/id/metropolitan-district-council/wolverhampton","Trainline","20.04","CIN/CP Social Work Unit - Area 8","4112","Public Transport","24/01/2017"
"Wolverhampton City Council","http://opendatacommunities.org/id/metropolitan-district-council/wolverhampton","WWW.LAMPSHOPONLINE.CO.","291.40","Maintenance & Technical Materials","5072","Equipment - Purchase","24/01/2017"
"Wolverhampton City Council","http://opendatacommunities.org/id/metropolitan-district-council/wolverhampton","SPECSAVERSEVOUGB-","1773.62","HR Advice","8043","Services - Professional Fees","23/01/2017"
"Wolverhampton City Council","http://opendatacommunities.org/id/metropolitan-district-council/wolverhampton","WEST COAST TRAINS","38.00","Register Office","4112","Public Transport","23/01/2017"
"Wolverhampton City Council","http://opendatacommunities.org/id/metropolitan-district-council/wolverhampton","WWW.CARTRIDGECO.CO.UK","106.62","Register Office","7399","Stationery","23/01/2017"
"Wolverhampton City Council","http://opendatacommunities.org/id/metropolitan-district-council/wolverhampton","Amazon UK Marketplace","11.54","Parks - East Area Management","5942","Equipment - Purchase","23/01/2017"
"Wolverhampton City Council","http://opendatacommunities.org/id/metropolitan-district-council/wolverhampton","PREMIER INN","165.00","No Recourse to Public Funds - CIN/CP","3811","Services - Supplies & Services to users","23/01/2017"
"Wolverhampton City Council","http://opendatacommunities.org/id/metropolitan-district-council/wolverhampton","AMAZON UK RETAIL AMAZO","-21.71","EIP Locality 8","5999","Equipment - Purchase","23/01/2017"
"Wolverhampton City Council","http://opendatacommunities.org/id/metropolitan-district-council/wolverhampton","ARGOS LTD","20.82","Cemeteries","5310","Equipment - Purchase","23/01/2017"
"Wolverhampton City Council","http://opendatacommunities.org/id/metropolitan-district-council/wolverhampton","CUMMINGS BROTHERS LOCK","7.50","Older People Assessment & Care Mgmt","7399","Equipment - Purchase","23/01/2017"
"Wolverhampton City Council","http://opendatacommunities.org/id/metropolitan-district-council/wolverhampton","Amazon UK Marketplace","39.00","EIP Locality 6","5942","Books","23/01/2017"
"Wolverhampton City Council","http://opendatacommunities.org/id/metropolitan-district-council/wolverhampton","Virgin Trains","194.00","Adoption and Residence Team & Allowances","4112","Public Transport","23/01/2017"
"Wolverhampton City Council","http://opendatacommunities.org/id/metropolitan-district-council/wolverhampton","WM MORRISONS","54.34","Early Years & Universal Service","5411","Provisions (Not for resale)","23/01/2017"
"Wolverhampton City Council","http://opendatacommunities.org/id/metropolitan-district-council/wolverhampton","SCREWFIX DIRECT","42.47","Public Conveniences","5211","R&M - Departmental planned (external)","23/01/2017"
"Wolverhampton City Council","http://opendatacommunities.org/id/metropolitan-district-council/wolverhampton","VUE ITCERTIFICATIONVUE","135.60","Strategic ICTS (ICT Serv Budget)","8299","Training Expenses","23/01/2017"
"Wolverhampton City Council","http://opendatacommunities.org/id/metropolitan-district-council/wolverhampton","Virgin Trains","216.00","Delivery & OCE Development","4112","Public Transport","23/01/2017"
"Wolverhampton City Council","http://opendatacommunities.org/id/metropolitan-district-council/wolverhampton","Virgin Trains","96.90","Delivery & OCE Development","4112","Public Transport","23/01/2017"
"Wolverhampton City Council","http://opendatacommunities.org/id/metropolitan-district-council/wolverhampton","Virgin Trains","187.20","Delivery & OCE Development","4112","Public Transport","23/01/2017"
"Wolverhampton City Council","http://opendatacommunities.org/id/metropolitan-district-council/wolverhampton","MAUDESPORT LTD","-26.63","Aldersley Leisure Village","5941","Equipment - Purchase","23/01/2017"
"Wolverhampton City Council","http://opendatacommunities.org/id/metropolitan-district-council/wolverhampton","POST OFFICE COUNTER","64.00","Intensive Family Support Team","9402","Comms - Postage","23/01/2017"
"Wolverhampton City Council","http://opendatacommunities.org/id/metropolitan-district-council/wolverhampton","POST OFFICE COUNTER","64.00","Intensive Family Support Team","9402","Comms - Postage","23/01/2017"
"Wolverhampton City Council","http://opendatacommunities.org/id/metropolitan-district-council/wolverhampton","POST OFFICE COUNTER","27.50","Intensive Family Support Team","9402","Comms - Postage","23/01/2017"
"Wolverhampton City Council","http://opendatacommunities.org/id/metropolitan-district-council/wolverhampton","SCREWFIX DIRECT","55.86","Old Hall Street Main","5211","Materials","23/01/2017"
"Wolverhampton City Council","http://opendatacommunities.org/id/metropolitan-district-council/wolverhampton","B&M RETAIL","27.95","Headstart Wolverhampton","5310","Equipment - Purchase","23/01/2017"
"Wolverhampton City Council","http://opendatacommunities.org/id/metropolitan-district-council/wolverhampton","THE CONSORTIUM/WMS","93.45","Education And Access","5968","Equipment - Purchase","23/01/2017"
"Wolverhampton City Council","http://opendatacommunities.org/id/metropolitan-district-council/wolverhampton","THE CONSORTIUM/WMS","163.49","Education And Access","5968","Equipment - Purchase","23/01/2017"
"Wolverhampton City Council","http://opendatacommunities.org/id/metropolitan-district-council/wolverhampton","IKEA LIMITED","23.79","Craftplay","5712","Materials","23/01/2017"
"Wolverhampton City Council","http://opendatacommunities.org/id/metropolitan-district-council/wolverhampton","Amazon Prime","7.99","Technical Support","5968","Subscriptions","23/01/2017"
"Wolverhampton City Council","http://opendatacommunities.org/id/metropolitan-district-council/wolverhampton","ASDA HOME SHOPPING","-0.09","Ernest Bold Court","5411","Provisions (Not for resale)","23/01/2017"
"Wolverhampton City Council","http://opendatacommunities.org/id/metropolitan-district-council/wolverhampton","ASDA HOME SHOPPING","95.47","Ernest Bold Court","5411","Provisions (Not for resale)","23/01/2017"
"Wolverhampton City Council","http://opendatacommunities.org/id/metropolitan-district-council/wolverhampton","WOLVERHAMPTON RACECOUR","-21.85","Environmental Health - Pub Prot - Gen","7011","Accommodation Costs","23/01/2017"
"Wolverhampton City Council","http://opendatacommunities.org/id/metropolitan-district-council/wolverhampton","WOLVERHAMPTON RACECOUR","448.40","Environmental Health - Pub Prot - Gen","7011","Accommodation Costs","23/01/2017"
"Wolverhampton City Council","http://opendatacommunities.org/id/metropolitan-district-council/wolverhampton","Trainline","49.27","CIN/CP S17 SW Unit - Area 5","4112","Public Transport","23/01/2017"
"Wolverhampton City Council","http://opendatacommunities.org/id/metropolitan-district-council/wolverhampton","DACS LTD","247.00","Art Gallery","5971","Services - General Licences","23/01/2017"
"Wolverhampton City Council","http://opendatacommunities.org/id/metropolitan-district-council/wolverhampton","AMAZON UK RETAIL AMAZO","7.51","Upper Pendeford Farm Childrens Home","5999","Equipment - Purchase","23/01/2017"
"Wolverhampton City Council","http://opendatacommunities.org/id/metropolitan-district-council/wolverhampton","Amazon UK Marketplace","7.86","Upper Pendeford Farm Childrens Home","5942","Cleaning Supplies and Materials","23/01/2017"
"Wolverhampton City Council","http://opendatacommunities.org/id/metropolitan-district-council/wolverhampton","Amazon UK Marketplace","5.09","Upper Pendeford Farm Childrens Home","5942","Books","23/01/2017"
"Wolverhampton City Council","http://opendatacommunities.org/id/metropolitan-district-council/wolverhampton","AMAZON UK RETAIL AMAZO","52.72","Upper Pendeford Farm Childrens Home","5999","Equipment - Purchase","23/01/2017"
"Wolverhampton City Council","http://opendatacommunities.org/id/metropolitan-district-council/wolverhampton","THE POST OFFICE","220.00","SEN Early Years Team","9402","Comms - Postage","23/01/2017"
"Wolverhampton City Council","http://opendatacommunities.org/id/metropolitan-district-council/wolverhampton","NATIONAL EXPRESS LIMIT","29.50","EIP Locality 3","4131","Public Transport","23/01/2017"
"Wolverhampton City Council","http://opendatacommunities.org/id/metropolitan-district-council/wolverhampton","SAINSBURYS","200.00","Childrens with Disabilities Team","6011","Financial Assistance In Exceptional Circ","23/01/2017"
"Wolverhampton City Council","http://opendatacommunities.org/id/metropolitan-district-council/wolverhampton","POST OFFICE COUNTER","12.03","Adoption and Residence Team & Allowances","9402","Comms - Postage","20/01/2017"
"Wolverhampton City Council","http://opendatacommunities.org/id/metropolitan-district-council/wolverhampton","ARGOS RETAIL GROUP","28.28","EIP Locality 4","5310","Grant Payments","20/01/2017"
"Wolverhampton City Council","http://opendatacommunities.org/id/metropolitan-district-council/wolverhampton","ASDA GEORGE COM LEEDS","20.00","EIP Locality 4","5411","Grant Payments","20/01/2017"
"Wolverhampton City Council","http://opendatacommunities.org/id/metropolitan-district-council/wolverhampton","SAINSBURYS (2340)","16.75","EIP Locality 4","5411","Grant Payments","20/01/2017"
"Wolverhampton City Council","http://opendatacommunities.org/id/metropolitan-district-council/wolverhampton","Amazon UK Marketplace","56.45","EIP Locality 4","5942","Equipment - Purchase","20/01/2017"
"Wolverhampton City Council","http://opendatacommunities.org/id/metropolitan-district-council/wolverhampton","MAUDESPORT LTD","264.79","Aldersley Leisure Village","5941","Equipment - Purchase","20/01/2017"
"Wolverhampton City Council","http://opendatacommunities.org/id/metropolitan-district-council/wolverhampton","WWW.YMCAFIT.ORG.UK","124.17","WV Active Business Support","8398","Training Expenses","20/01/2017"
"Wolverhampton City Council","http://opendatacommunities.org/id/metropolitan-district-council/wolverhampton","J P LENNARD LTD","38.50","Central Baths","5941","Equipment - Purchase","20/01/2017"
"Wolverhampton City Council","http://opendatacommunities.org/id/metropolitan-district-council/wolverhampton","J P LENNARD LTD","173.72","Aldersley Leisure Village","5941","Equipment - Purchase","20/01/2017"
"Wolverhampton City Council","http://opendatacommunities.org/id/metropolitan-district-council/wolverhampton","LION PICTURE FRAMING S","61.10","Creative Studies Delivery Area","5999","Equipment - Purchase","20/01/2017"
"Wolverhampton City Council","http://opendatacommunities.org/id/metropolitan-district-council/wolverhampton","Amazon UK Marketplace","100.82","LAC Transitions Team","5942","Client Allowances","20/01/2017"
"Wolverhampton City Council","http://opendatacommunities.org/id/metropolitan-district-council/wolverhampton","GO CARZ","6.50","EIP Locality 5","4121","Client Transport","20/01/2017"
"Wolverhampton City Council","http://opendatacommunities.org/id/metropolitan-district-council/wolverhampton","THEPLASTICSHOP","234.78","Art Gallery","7399","Equipment - Purchase","20/01/2017"
"Wolverhampton City Council","http://opendatacommunities.org/id/metropolitan-district-council/wolverhampton","PREMIER INN","82.50","No Recourse to Public Funds - CIN/CP","3811","Accommodation Costs","20/01/2017"
"Wolverhampton City Council","http://opendatacommunities.org/id/metropolitan-district-council/wolverhampton","Virgin Trains","77.00","Democratic Support","4112","Public Transport","20/01/2017"
"Wolverhampton City Council","http://opendatacommunities.org/id/metropolitan-district-council/wolverhampton","WILKO.COM","32.92","Artist Rooms","5722","Equipment - Purchase","20/01/2017"
"Wolverhampton City Council","http://opendatacommunities.org/id/metropolitan-district-council/wolverhampton","Amazon UK Marketplace","93.09","Central Baths","5942","Stationery","20/01/2017"
"Wolverhampton City Council","http://opendatacommunities.org/id/metropolitan-district-council/wolverhampton","Trainline","24.02","Parent / Partnership Service","4112","Public Transport","20/01/2017"
"Wolverhampton City Council","http://opendatacommunities.org/id/metropolitan-district-council/wolverhampton","SurveyMonkey","250.00","Parent / Partnership Service","7372","Computing - Purchase of Software","20/01/2017"
"Wolverhampton City Council","http://opendatacommunities.org/id/metropolitan-district-council/wolverhampton","MAPLIN WOLVERHAMPT WV2","49.13","Condition Surveys","4812","Comms - Mobile Telephones","20/01/2017"
"Wolverhampton City Council","http://opendatacommunities.org/id/metropolitan-district-council/wolverhampton","WILKO.COM","67.50","CIN - Referral Hub","5722","Equipment - Purchase","20/01/2017"
"Wolverhampton City Council","http://opendatacommunities.org/id/metropolitan-district-council/wolverhampton","TESCO STORES 5194","-2.65","Towers Outdoor Education Centre","5411","Provisions (Not for resale)","20/01/2017"
"Wolverhampton City Council","http://opendatacommunities.org/id/metropolitan-district-council/wolverhampton","TESCO DELIVERY SAVER2","2.50","Towers Outdoor Education Centre","5968","Equipment - Purchase","20/01/2017"
"Wolverhampton City Council","http://opendatacommunities.org/id/metropolitan-district-council/wolverhampton","Wix.com","93.13","Technical Support","5817","Computing - Purchase of Software","20/01/2017"
"Wolverhampton City Council","http://opendatacommunities.org/id/metropolitan-district-council/wolverhampton","APPLE ONLINE STORE GBP","66.67","Learning Technologies","5732","Equipment - Purchase","20/01/2017"
"Wolverhampton City Council","http://opendatacommunities.org/id/metropolitan-district-council/wolverhampton","ARMADA COMPUTER PU","670.50","Technical Support","8299","Training Expenses","20/01/2017"
"Wolverhampton City Council","http://opendatacommunities.org/id/metropolitan-district-council/wolverhampton","HOMEBASE LTD 103","5.52","Learning Disabilities Management","5211","Equipment - R & M","20/01/2017"
"Wolverhampton City Council","http://opendatacommunities.org/id/metropolitan-district-council/wolverhampton","PRINTCARRIER.COM","64.00","The Little Civic","2741","Marketing \ Non-staff advertising","20/01/2017"
"Wolverhampton City Council","http://opendatacommunities.org/id/metropolitan-district-council/wolverhampton","ARGOS RETAIL GROUP","179.93","CIN/CP S17 SW Unit - Area 4","5310","Equipment - Purchase","20/01/2017"
"Wolverhampton City Council","http://opendatacommunities.org/id/metropolitan-district-council/wolverhampton","B&M RETAIL LTD","4.99","Education Catering - General Overheads","5310","Materials","20/01/2017"
"Wolverhampton City Council","http://opendatacommunities.org/id/metropolitan-district-council/wolverhampton","TOOLSTATION LTD","10.73","Education Catering - General Overheads","5251","Catering","20/01/2017"
"Wolverhampton City Council","http://opendatacommunities.org/id/metropolitan-district-council/wolverhampton","APPLIANCEDIRECT CO","-19.95","Upper Pendeford Farm Childrens Home","5734","Computing - Purchase of Software","20/01/2017"
"Wolverhampton City Council","http://opendatacommunities.org/id/metropolitan-district-council/wolverhampton","IKEA ONLINE","190.83","Children & Family Contact Services","5719","Equipment - Purchase","20/01/2017"
"Wolverhampton City Council","http://opendatacommunities.org/id/metropolitan-district-council/wolverhampton","WWW.MOTOR.ORG.UK","60.00","Fleet Management","5999","MOT & HGV Tests","20/01/2017"
"Wolverhampton City Council","http://opendatacommunities.org/id/metropolitan-district-council/wolverhampton","VW VAN CENTRE","284.59","Fleet Management","5511","Equipment - Purchase","20/01/2017"
"Wolverhampton City Council","http://opendatacommunities.org/id/metropolitan-district-council/wolverhampton","GRO HM PASSPORT OFFICE","29.85","CIN/CP S17 SW Unit - Area 8","9399","Services - Fees and Charges","20/01/2017"
"Wolverhampton City Council","http://opendatacommunities.org/id/metropolitan-district-council/wolverhampton","SAINSBURYS","120.00","Mental Health Assessment & Care Mgmt","6011","Financial Assistance In Exceptional Circ","20/01/2017"
"Wolverhampton City Council","http://opendatacommunities.org/id/metropolitan-district-council/wolverhampton","Amazon EU","29.89","Adoption and Residence Team & Allowances","5969","Books","20/01/2017"
"Wolverhampton City Council","http://opendatacommunities.org/id/metropolitan-district-council/wolverhampton","GO CARZ","6.61","EIP Locality 5","4121","Client Transport","20/01/2017"
"Wolverhampton City Council","http://opendatacommunities.org/id/metropolitan-district-council/wolverhampton","GO CARZ","6.61","EIP Locality 5","4121","Client Transport","20/01/2017"
"Wolverhampton City Council","http://opendatacommunities.org/id/metropolitan-district-council/wolverhampton","WM MORRISONS","12.85","Head of Service - CINCP","5411","Provisions (Not for resale)","19/01/2017"
"Wolverhampton City Council","http://opendatacommunities.org/id/metropolitan-district-council/wolverhampton","ASDA SUPERSTORE","108.87","Children & Family Contact Services","5411","Equipment - Purchase","19/01/2017"
"Wolverhampton City Council","http://opendatacommunities.org/id/metropolitan-district-council/wolverhampton","THE VAN HUBB LTD","226.60","Fleet Management","7538","Equipment - Purchase","19/01/2017"
"Wolverhampton City Council","http://opendatacommunities.org/id/metropolitan-district-council/wolverhampton","PAYPAL  MES LTD","255.00","Music Support Team","8211","Services - Professional Fees","19/01/2017"
"Wolverhampton City Council","http://opendatacommunities.org/id/metropolitan-district-council/wolverhampton","Virgin Trains","231.00","Music Support Team","4112","Equipment - Purchase","19/01/2017"
"Wolverhampton City Council","http://opendatacommunities.org/id/metropolitan-district-council/wolverhampton","E01510300000000","60.00","Delivery & OCE Development","6011","Financial Assistance In Exceptional Circ","19/01/2017"
"Wolverhampton City Council","http://opendatacommunities.org/id/metropolitan-district-council/wolverhampton","E01510300000000","80.00","Delivery & OCE Development","6011","Financial Assistance In Exceptional Circ","19/01/2017"
"Wolverhampton City Council","http://opendatacommunities.org/id/metropolitan-district-council/wolverhampton","Amazon UK Marketplace","3.52","Northicote Farm","5942","Equipment - Purchase","19/01/2017"
"Wolverhampton City Council","http://opendatacommunities.org/id/metropolitan-district-council/wolverhampton","WISEPOPSCOM","40.99","City Direct","7372","Computing - Purchase of Software","19/01/2017"
"Wolverhampton City Council","http://opendatacommunities.org/id/metropolitan-district-council/wolverhampton","ARGOS RETAIL GROUP","189.16","EIP Locality 4","5310","Grant Payments","19/01/2017"
"Wolverhampton City Council","http://opendatacommunities.org/id/metropolitan-district-council/wolverhampton","ASDA GEORGE COM LEEDS","20.83","EIP Locality 4","5411","Grant Payments","19/01/2017"
"Wolverhampton City Council","http://opendatacommunities.org/id/metropolitan-district-council/wolverhampton","LIDDELL ELECTRICAL DIS","81.30","Statutory Services (10RM)","5065","R&M - Departmental planned (external)","19/01/2017"
"Wolverhampton City Council","http://opendatacommunities.org/id/metropolitan-district-council/wolverhampton","CALUMET EDINBURGH","900.00","Communications & Marketing - General","5946","Equipment - Purchase","19/01/2017"
"Wolverhampton City Council","http://opendatacommunities.org/id/metropolitan-district-council/wolverhampton","WWW.STA.CO.UK","47.00","Aldersley Leisure Village","7999","Services - General Licences","19/01/2017"
"Wolverhampton City Council","http://opendatacommunities.org/id/metropolitan-district-council/wolverhampton","Trainline","136.78","Intensive Family Support Team","4112","Public Transport","19/01/2017"
"Wolverhampton City Council","http://opendatacommunities.org/id/metropolitan-district-council/wolverhampton","Amazon EU","77.23","Emergency Duty Team","5969","Equipment - Purchase","19/01/2017"
"Wolverhampton City Council","http://opendatacommunities.org/id/metropolitan-district-council/wolverhampton","Amazon EU","77.22","Emergency Duty Team","5969","Equipment - Purchase","19/01/2017"
"Wolverhampton City Council","http://opendatacommunities.org/id/metropolitan-district-council/wolverhampton","ASDA HOME SHOPPING","208.30","Upper Pendeford Farm Childrens Home","5411","Provisions (Not for resale)","19/01/2017"
"Wolverhampton City Council","http://opendatacommunities.org/id/metropolitan-district-council/wolverhampton","ARGOS RETAIL GROUP","19.99","Language Studies Delivery Area","5310","Equipment - Purchase","19/01/2017"
"Wolverhampton City Council","http://opendatacommunities.org/id/metropolitan-district-council/wolverhampton","WCC PHONE PAYMENTS","98.72","LAC Transitions Team","9399","Client Allowances","19/01/2017"
"Wolverhampton City Council","http://opendatacommunities.org/id/metropolitan-district-council/wolverhampton","Trainline","83.84","CIN/CP S17 SW Unit - Area 2","4112","Public Transport","19/01/2017"
"Wolverhampton City Council","http://opendatacommunities.org/id/metropolitan-district-council/wolverhampton","JANITORIAL DIRECT LTD","38.97","Central Baths","7349","Cleaning Supplies and Materials","19/01/2017"
"Wolverhampton City Council","http://opendatacommunities.org/id/metropolitan-district-council/wolverhampton","Amazon UK Marketplace","8.32","Towers Outdoor Education Centre","5942","Equipment - Purchase","19/01/2017"
"Wolverhampton City Council","http://opendatacommunities.org/id/metropolitan-district-council/wolverhampton","TESCO STORES 5194","51.49","Towers Outdoor Education Centre","5411","Provisions (Not for resale)","19/01/2017"
"Wolverhampton City Council","http://opendatacommunities.org/id/metropolitan-district-council/wolverhampton","C L JONES LIMITED","46.25","Towers Outdoor Education Centre","5211","Equipment - Purchase","19/01/2017"
"Wolverhampton City Council","http://opendatacommunities.org/id/metropolitan-district-council/wolverhampton","HN NUTTALL LTD","187.35","Towers Outdoor Education Centre","5085","Equipment - Purchase","19/01/2017"
"Wolverhampton City Council","http://opendatacommunities.org/id/metropolitan-district-council/wolverhampton","FUEL CARD SERVICES LTD","68.23","Towers Outdoor Education Centre","7399","Petrol","19/01/2017"
"Wolverhampton City Council","http://opendatacommunities.org/id/metropolitan-district-council/wolverhampton","Virgin Trains","424.80","Children & Young People Support Costs","4112","Public Transport","19/01/2017"
"Wolverhampton City Council","http://opendatacommunities.org/id/metropolitan-district-council/wolverhampton","STUPID TUESDAY LTD","241.74","Learning Technologies","5947","Equipment - Purchase","19/01/2017"
"Wolverhampton City Council","http://opendatacommunities.org/id/metropolitan-district-council/wolverhampton","WCC- MIDLANDS BOX OFFI","3.00","Art Gallery","9399","Services - Fees and Charges","19/01/2017"
"Wolverhampton City Council","http://opendatacommunities.org/id/metropolitan-district-council/wolverhampton","ASDA HOME SHOPPING","2.50","Upper Pendeford Farm Childrens Home","5411","Provisions (Not for resale)","18/01/2017"
"Wolverhampton City Council","http://opendatacommunities.org/id/metropolitan-district-council/wolverhampton","ASDA SUPERSTORE","25.83","LAC Transitions Team","5411","Client Allowances","18/01/2017"
"Wolverhampton City Council","http://opendatacommunities.org/id/metropolitan-district-council/wolverhampton","SEVERN TRENT WATER","26.34","LAC Transitions Team","4900","Client Allowances","18/01/2017"
"Wolverhampton City Council","http://opendatacommunities.org/id/metropolitan-district-council/wolverhampton","HUGHES","408.54","LAC Transitions Team","5732","Client Allowances","18/01/2017"
"Wolverhampton City Council","http://opendatacommunities.org/id/metropolitan-district-council/wolverhampton","HUGHES","153.94","LAC Transitions Team","5732","Client Allowances","18/01/2017"
"Wolverhampton City Council","http://opendatacommunities.org/id/metropolitan-district-council/wolverhampton","ARGOS RETAIL GROUP","94.07","LAC Transitions Team","5310","Client Allowances","18/01/2017"
"Wolverhampton City Council","http://opendatacommunities.org/id/metropolitan-district-council/wolverhampton","ARGOS RETAIL GROUP","319.15","LAC Transitions Team","5310","Client Allowances","18/01/2017"
"Wolverhampton City Council","http://opendatacommunities.org/id/metropolitan-district-council/wolverhampton","WWW.GOV.UK","10.00","Private Sector Housing","8999","Services - Professional Fees","18/01/2017"
"Wolverhampton City Council","http://opendatacommunities.org/id/metropolitan-district-council/wolverhampton","MIDLAND DOMESTIC","175.00","EIP Locality 1","5722","Equipment - Purchase","18/01/2017"
"Wolverhampton City Council","http://opendatacommunities.org/id/metropolitan-district-council/wolverhampton","Amazon EU","11.44","LAC Transitions Team","5969","Client Allowances","18/01/2017"
"Wolverhampton City Council","http://opendatacommunities.org/id/metropolitan-district-council/wolverhampton","SAINSBURYS","50.00","Duke Street Bungalows","6011","Financial Assistance In Exceptional Circ","18/01/2017"
"Wolverhampton City Council","http://opendatacommunities.org/id/metropolitan-district-council/wolverhampton","TESCO STORES 5194","173.57","Towers Outdoor Education Centre","5411","Provisions (Not for resale)","18/01/2017"
"Wolverhampton City Council","http://opendatacommunities.org/id/metropolitan-district-council/wolverhampton","HSBC INVOICE FINAN","438.19","Towers Outdoor Education Centre","6012","Laundry Expenses","18/01/2017"
"Wolverhampton City Council","http://opendatacommunities.org/id/metropolitan-district-council/wolverhampton","Amazon EU","32.53","Towers Outdoor Education Centre","5969","Equipment - Purchase","18/01/2017"
"Wolverhampton City Council","http://opendatacommunities.org/id/metropolitan-district-council/wolverhampton","Amazon UK Marketplace","29.94","Education Catering - General Overheads","5942","Books","18/01/2017"
"Wolverhampton City Council","http://opendatacommunities.org/id/metropolitan-district-council/wolverhampton","CARD FACTORY","2.58","Art Gallery","5947","Equipment - Purchase","18/01/2017"
"Wolverhampton City Council","http://opendatacommunities.org/id/metropolitan-district-council/wolverhampton","MARKS&SPENCER PLC SACA","31.90","Art Gallery","5411","Provisions (Not for resale)","18/01/2017"
"Wolverhampton City Council","http://opendatacommunities.org/id/metropolitan-district-council/wolverhampton","SAINSBURYS LOC (4384)","7.70","CIN/CP S17 SW Unit - Area 5","5411","Provisions (Not for resale)","18/01/2017"
"Wolverhampton City Council","http://opendatacommunities.org/id/metropolitan-district-council/wolverhampton","HOBBY CRAFT LTD","169.12","Adoption and Residence Team & Allowances","5970","Stationery","18/01/2017"
"Wolverhampton City Council","http://opendatacommunities.org/id/metropolitan-district-council/wolverhampton","PREMIER INN","133.32","Adoption and Residence Team & Allowances","3811","Accommodation Costs","18/01/2017"
"Wolverhampton City Council","http://opendatacommunities.org/id/metropolitan-district-council/wolverhampton","POST OFFICE COUNTER","357.00","Adoption and Residence Team & Allowances","9402","Comms - Postage","18/01/2017"
"Wolverhampton City Council","http://opendatacommunities.org/id/metropolitan-district-council/wolverhampton","AMAZON UK RETAIL AMAZO","18.08","EIP Locality 8","5999","Equipment - Purchase","18/01/2017"
"Wolverhampton City Council","http://opendatacommunities.org/id/metropolitan-district-council/wolverhampton","Amazon UK Marketplace","5.50","EIP Locality 8","5942","Equipment - Purchase","18/01/2017"
"Wolverhampton City Council","http://opendatacommunities.org/id/metropolitan-district-council/wolverhampton","UNTOUCHABLES","53.75","Cemeteries","5231","Materials","18/01/2017"
"Wolverhampton City Council","http://opendatacommunities.org/id/metropolitan-district-council/wolverhampton","SCREWFIX DIRECT LT","56.86","Priory Green","5211","Materials","18/01/2017"
"Wolverhampton City Council","http://opendatacommunities.org/id/metropolitan-district-council/wolverhampton","Trainline","34.73","Service Director City Economy","4112","Public Transport","18/01/2017"
"Wolverhampton City Council","http://opendatacommunities.org/id/metropolitan-district-council/wolverhampton","WAITROSE 696","11.80","EIP Locality 4","5411","Grant Payments","18/01/2017"
"Wolverhampton City Council","http://opendatacommunities.org/id/metropolitan-district-council/wolverhampton","CUMMINGS BROTHERS LOCK","30.83","Public Conveniences","7399","R&M - Departmental planned (external)","18/01/2017"
"Wolverhampton City Council","http://opendatacommunities.org/id/metropolitan-district-council/wolverhampton","Amazon UK Marketplace","133.50","Strategic ICTS (ICT Serv Budget)","5942","Computing - Purchase of Hardware","18/01/2017"
"Wolverhampton City Council","http://opendatacommunities.org/id/metropolitan-district-council/wolverhampton","ARGOS RETAIL GROUP","33.32","LAC Transitions Team","5310","Client Allowances","18/01/2017"
"Wolverhampton City Council","http://opendatacommunities.org/id/metropolitan-district-council/wolverhampton","Amazon UK Marketplace","58.32","LAC Transitions Team","5942","Client Allowances","18/01/2017"
"Wolverhampton City Council","http://opendatacommunities.org/id/metropolitan-district-council/wolverhampton","Amazon UK Marketplace","112.44","LAC Transitions Team","5942","Client Allowances","18/01/2017"
"Wolverhampton City Council","http://opendatacommunities.org/id/metropolitan-district-council/wolverhampton","EE TOPUP  VESTA","8.33","Independent Living Service","4814","Comms - Telephone Call charges","18/01/2017"
"Wolverhampton City Council","http://opendatacommunities.org/id/metropolitan-district-council/wolverhampton","WWW.STUFF-UK.NET","-39.09","Central Baths","7372","Equipment - Purchase","18/01/2017"
"Wolverhampton City Council","http://opendatacommunities.org/id/metropolitan-district-council/wolverhampton","WEST COAST TRAINS","9.00","Road Safety","4112","Public Transport","18/01/2017"
"Wolverhampton City Council","http://opendatacommunities.org/id/metropolitan-district-council/wolverhampton","REGISTRARS OFFICE","27.00","Head of Service - CINCP","8299","Services - Professional Fees","18/01/2017"
"Wolverhampton City Council","http://opendatacommunities.org/id/metropolitan-district-council/wolverhampton","Amazon UK Marketplace","9.99","Strategic ICTS (ICT Serv Budget)","5942","Equipment - Purchase","18/01/2017"
"Wolverhampton City Council","http://opendatacommunities.org/id/metropolitan-district-council/wolverhampton","FIRSTAID4LESS.CO.UK","81.96","Upper Pendeford Farm Childrens Home","5999","Equipment - Purchase","18/01/2017"
"Wolverhampton City Council","http://opendatacommunities.org/id/metropolitan-district-council/wolverhampton","THE WORKS","0.00","EIP Locality 3","5310","Equipment - Purchase","18/01/2017"
"Wolverhampton City Council","http://opendatacommunities.org/id/metropolitan-district-council/wolverhampton","NETWORK WEST MIDLANDS","0.00","EIP Locality 3","9399","Services - Fees and Charges","18/01/2017"
"Wolverhampton City Council","http://opendatacommunities.org/id/metropolitan-district-council/wolverhampton","NETWORK WEST MIDLANDS","0.00","EIP Locality 3","9399","Services - Fees and Charges","18/01/2017"
"Wolverhampton City Council","http://opendatacommunities.org/id/metropolitan-district-council/wolverhampton","ARGOS LTD","0.00","EIP Locality 3","5310","Equipment - Purchase","18/01/2017"
"Wolverhampton City Council","http://opendatacommunities.org/id/metropolitan-district-council/wolverhampton","TESCO PFS 2185","11.64","CIN/CP S17 SW Unit - Area 7","5541","Hospitality","17/01/2017"
"Wolverhampton City Council","http://opendatacommunities.org/id/metropolitan-district-council/wolverhampton","SALFORD PROFESSIONAL D","50.00","Central Training","8299","Training Expenses","17/01/2017"
"Wolverhampton City Council","http://opendatacommunities.org/id/metropolitan-district-council/wolverhampton","NIJJAR SPRMK LTD 48994","152.75","Ekta Day Centre","5411","Provisions (Not for resale)","17/01/2017"
"Wolverhampton City Council","http://opendatacommunities.org/id/metropolitan-district-council/wolverhampton","G & M HALE (SUNDRIES)","21.40","Discretionary Fund","5992","Materials","17/01/2017"
"Wolverhampton City Council","http://opendatacommunities.org/id/metropolitan-district-council/wolverhampton","G & M HALE (SUNDRIES)","25.00","Creative Studies Delivery Area","5992","Materials for resale","17/01/2017"
"Wolverhampton City Council","http://opendatacommunities.org/id/metropolitan-district-council/wolverhampton","G & M HALE LTD","103.00","Discretionary Fund","5992","Materials","17/01/2017"
"Wolverhampton City Council","http://opendatacommunities.org/id/metropolitan-district-council/wolverhampton","LOYD WEDNESFIELD WOLVE","250.00","EIP Locality 8","6011","Grant Payments","17/01/2017"
"Wolverhampton City Council","http://opendatacommunities.org/id/metropolitan-district-council/wolverhampton","Amazon UK Marketplace","259.80","Strategic ICTS (ICT Serv Budget)","5942","Computing - Purchase of Hardware","17/01/2017"
"Wolverhampton City Council","http://opendatacommunities.org/id/metropolitan-district-council/wolverhampton","Amazon UK Marketplace","69.95","Strategic ICTS (ICT Serv Budget)","5942","Computing - Purchase of Hardware","17/01/2017"
"Wolverhampton City Council","http://opendatacommunities.org/id/metropolitan-district-council/wolverhampton","Trainline","54.57","Intensive Family Support Team","4112","Public Transport","17/01/2017"
"Wolverhampton City Council","http://opendatacommunities.org/id/metropolitan-district-council/wolverhampton","W M MORRISONS.COM","115.06","Discretionary Fund","5411","Materials","17/01/2017"
"Wolverhampton City Council","http://opendatacommunities.org/id/metropolitan-district-council/wolverhampton","Trainline","38.56","Ambrosia Project","4112","Public Transport","17/01/2017"
"Wolverhampton City Council","http://opendatacommunities.org/id/metropolitan-district-council/wolverhampton","Amazon UK Marketplace","118.29","Headstart Wolverhampton","5942","Books","17/01/2017"
"Wolverhampton City Council","http://opendatacommunities.org/id/metropolitan-district-council/wolverhampton","Amazon UK Marketplace","68.95","Headstart Wolverhampton","5942","Books","17/01/2017"
"Wolverhampton City Council","http://opendatacommunities.org/id/metropolitan-district-council/wolverhampton","SAINSBURYS (2340)","71.06","Strategic Director People","5411","Provisions (Not for resale)","17/01/2017"
"Wolverhampton City Council","http://opendatacommunities.org/id/metropolitan-district-council/wolverhampton","POSITIVE MEDIA PRO","247.00","Telecare","7333","Marketing \ Non-staff advertising","17/01/2017"
"Wolverhampton City Council","http://opendatacommunities.org/id/metropolitan-district-council/wolverhampton","G & M HALE LTD","48.20","Discretionary Fund","5992","Materials","17/01/2017"
"Wolverhampton City Council","http://opendatacommunities.org/id/metropolitan-district-council/wolverhampton","G & M HALE LTD","85.60","Creative Studies Delivery Area","5992","Materials for resale","17/01/2017"
"Wolverhampton City Council","http://opendatacommunities.org/id/metropolitan-district-council/wolverhampton","WEST COAST TRAINS","5.50","Art Gallery","4112","Public Transport","17/01/2017"
"Wolverhampton City Council","http://opendatacommunities.org/id/metropolitan-district-council/wolverhampton","ASDA HOME SHOPPING","-4.10","Ernest Bold Court","5411","Provisions (Not for resale)","17/01/2017"
"Wolverhampton City Council","http://opendatacommunities.org/id/metropolitan-district-council/wolverhampton","ASDA HOME SHOPPING","88.04","Ernest Bold Court","5411","Provisions (Not for resale)","17/01/2017"
"Wolverhampton City Council","http://opendatacommunities.org/id/metropolitan-district-council/wolverhampton","POST OFFICE SHOP","22.19","Environmental Health - Pub Prot - Gen","9402","Equipment - Purchase","17/01/2017"
"Wolverhampton City Council","http://opendatacommunities.org/id/metropolitan-district-council/wolverhampton","YMLP.COM","105.00","Art Gallery","7372","Marketing \ Non-staff advertising","17/01/2017"
"Wolverhampton City Council","http://opendatacommunities.org/id/metropolitan-district-council/wolverhampton","BUILD A BEAR WORKSHOP","57.25","Civic Centre Catering","5999","Equipment - Purchase","17/01/2017"
"Wolverhampton City Council","http://opendatacommunities.org/id/metropolitan-district-council/wolverhampton","POST OFFICE COUNTER","142.00","EIP Locality 8","9402","Comms - Postage","16/01/2017"
"Wolverhampton City Council","http://opendatacommunities.org/id/metropolitan-district-council/wolverhampton","LOOP11.COM","168.54","City Direct","7372","Computing - Purchase of Software","16/01/2017"
"Wolverhampton City Council","http://opendatacommunities.org/id/metropolitan-district-council/wolverhampton","ARGOS DIRECT","-141.65","EIP Locality 6","5310","Equipment - Purchase","16/01/2017"
"Wolverhampton City Council","http://opendatacommunities.org/id/metropolitan-district-council/wolverhampton","WWW.JUSTGLOVES.CO.UK","29.45","Central Baths","5999","Equipment - Purchase","16/01/2017"
"Wolverhampton City Council","http://opendatacommunities.org/id/metropolitan-district-council/wolverhampton","REGISTRARS OFFICE","8.33","Hostels / Outreach","8299","Financial Assistance In Exceptional Circ","16/01/2017"
"Wolverhampton City Council","http://opendatacommunities.org/id/metropolitan-district-council/wolverhampton","TESCO STORES 5397","10.44","EIP Locality 1","5411","Comms - Postage","16/01/2017"
"Wolverhampton City Council","http://opendatacommunities.org/id/metropolitan-district-council/wolverhampton","PREMIER INN","57.49","Pop Gallery Space","3811","Services - Supplies & Services to users","16/01/2017"
"Wolverhampton City Council","http://opendatacommunities.org/id/metropolitan-district-council/wolverhampton","WWW.NISBETS.COM","-41.95","Towers Outdoor Education Centre","5964","Equipment - Purchase","16/01/2017"
"Wolverhampton City Council","http://opendatacommunities.org/id/metropolitan-district-council/wolverhampton","Amazon UK Marketplace","27.98","Art Gallery","5942","Books","16/01/2017"
"Wolverhampton City Council","http://opendatacommunities.org/id/metropolitan-district-council/wolverhampton","Amazon UK Marketplace","39.96","Art Gallery","5942","Books","16/01/2017"
"Wolverhampton City Council","http://opendatacommunities.org/id/metropolitan-district-council/wolverhampton","ASDA HOME SHOPPING","-0.25","Ernest Bold Court","5411","Provisions (Not for resale)","16/01/2017"
"Wolverhampton City Council","http://opendatacommunities.org/id/metropolitan-district-council/wolverhampton","ASDA HOME SHOPPING","95.87","Ernest Bold Court","5411","Provisions (Not for resale)","16/01/2017"
"Wolverhampton City Council","http://opendatacommunities.org/id/metropolitan-district-council/wolverhampton","Virgin Trains","91.60","Members Expenses","4112","Public Transport","16/01/2017"
"Wolverhampton City Council","http://opendatacommunities.org/id/metropolitan-district-council/wolverhampton","123-REG.CO.UK","13.98","Education Business Partnership","4816","Computing - Purchase of Software","16/01/2017"
"Wolverhampton City Council","http://opendatacommunities.org/id/metropolitan-district-council/wolverhampton","WWW.PAYOCS.CO.UK","12.18","Education Business Partnership","7349","Catering","16/01/2017"
"Wolverhampton City Council","http://opendatacommunities.org/id/metropolitan-district-council/wolverhampton","FLORELLA","7793.11","International Trade","5969","Accommodation Costs","16/01/2017"
"Wolverhampton City Council","http://opendatacommunities.org/id/metropolitan-district-council/wolverhampton","EE & T-MOBILE","124.70","Civic Halls Non Direct Management A/C","4814","Comms - Telephone Call charges","16/01/2017"
"Wolverhampton City Council","http://opendatacommunities.org/id/metropolitan-district-council/wolverhampton","Q-SYSTEMS LIMITED","45.00","Catering Overhead Account","5999","Comms - Postage","16/01/2017"
"Wolverhampton City Council","http://opendatacommunities.org/id/metropolitan-district-council/wolverhampton","UK AUTOMOTIVE PRODTS L","196.00","Catering Overhead Account","5533","Equipment - Purchase","16/01/2017"
"Wolverhampton City Council","http://opendatacommunities.org/id/metropolitan-district-council/wolverhampton","M-R-S COMMUNICATIONS L","260.00","Civic Halls Non Direct Management A/C","5046","Equipment - Purchase","16/01/2017"
"Wolverhampton City Council","http://opendatacommunities.org/id/metropolitan-district-council/wolverhampton","WWW.NISBETS.COM","30.58","Education Catering - General Overheads","5964","Equipment - Purchase","16/01/2017"
"Wolverhampton City Council","http://opendatacommunities.org/id/metropolitan-district-council/wolverhampton","Amazon UK Marketplace","125.92","Learning Technologies","5942","Equipment - Purchase","16/01/2017"
"Wolverhampton City Council","http://opendatacommunities.org/id/metropolitan-district-council/wolverhampton","Amazon UK Marketplace","125.92","Learning Technologies","5942","Equipment - Purchase","16/01/2017"
"Wolverhampton City Council","http://opendatacommunities.org/id/metropolitan-district-council/wolverhampton","Wix.com","46.57","Technical Support","5817","Computing - Purchase of Software","16/01/2017"
"Wolverhampton City Council","http://opendatacommunities.org/id/metropolitan-district-council/wolverhampton","MOBI TECHNO LTD","180.00","Technical Support","4812","Comms - Mobile Telephones","16/01/2017"
"Wolverhampton City Council","http://opendatacommunities.org/id/metropolitan-district-council/wolverhampton","Amazon UK Marketplace","73.91","Learning Technologies","5942","Equipment - Purchase","16/01/2017"
"Wolverhampton City Council","http://opendatacommunities.org/id/metropolitan-district-council/wolverhampton","Amazon EU","13.09","Global Budgets","5969","Books","16/01/2017"
"Wolverhampton City Council","http://opendatacommunities.org/id/metropolitan-district-council/wolverhampton","WICKES","17.90","Learning Disabilities Management","5211","Equipment - R & M","16/01/2017"
"Wolverhampton City Council","http://opendatacommunities.org/id/metropolitan-district-council/wolverhampton","PAYPAL  THEROTA","174.69","Civic Halls Non Direct Management A/C","5735","Marketing \ Non-staff advertising","16/01/2017"
"Wolverhampton City Council","http://opendatacommunities.org/id/metropolitan-district-council/wolverhampton","PAYPAL  THEROTA","173.79","Civic Halls Non Direct Management A/C","5735","Marketing \ Non-staff advertising","16/01/2017"
"Wolverhampton City Council","http://opendatacommunities.org/id/metropolitan-district-council/wolverhampton","PURE360","268.80","Civic Halls Non Direct Management A/C","7372","Marketing \ Non-staff advertising","16/01/2017"
"Wolverhampton City Council","http://opendatacommunities.org/id/metropolitan-district-council/wolverhampton","SAINSBURYS SACAT 2040","3.00","Duke Street Bungalows","5411","Provisions (Not for resale)","16/01/2017"
"Wolverhampton City Council","http://opendatacommunities.org/id/metropolitan-district-council/wolverhampton","SAINSBURYS SACAT 2040","5.25","Duke Street Bungalows","5411","Provisions (Not for resale)","16/01/2017"
"Wolverhampton City Council","http://opendatacommunities.org/id/metropolitan-district-council/wolverhampton","THE POST OFFICE","10.74","Legal Services","9402","Comms - Postage","16/01/2017"
"Wolverhampton City Council","http://opendatacommunities.org/id/metropolitan-district-council/wolverhampton","PO LOW HILL 1592","50.00","EIP Locality 7","6011","Equipment - Purchase","16/01/2017"
"Wolverhampton City Council","http://opendatacommunities.org/id/metropolitan-district-council/wolverhampton","Akzonobel","72.88","Maintenance & Technical Materials","5198","Materials","16/01/2017"
"Wolverhampton City Council","http://opendatacommunities.org/id/metropolitan-district-council/wolverhampton","Amazon UK Marketplace","26.99","Learning Technologies","5942","Computing - Purchase of Hardware","13/01/2017"
"Wolverhampton City Council","http://opendatacommunities.org/id/metropolitan-district-council/wolverhampton","Amazon UK Marketplace","13.51","Global Budgets","5942","Books","13/01/2017"
"Wolverhampton City Council","http://opendatacommunities.org/id/metropolitan-district-council/wolverhampton","Amazon UK Marketplace","7.25","Global Budgets","5942","Books","13/01/2017"
"Wolverhampton City Council","http://opendatacommunities.org/id/metropolitan-district-council/wolverhampton","Virgin Trains","86.40","LAC Team","4112","Public Transport","13/01/2017"
"Wolverhampton City Council","http://opendatacommunities.org/id/metropolitan-district-council/wolverhampton","BEATTIES","51.25","Strategic Director Place","5311","Equipment - Purchase","13/01/2017"
"Wolverhampton City Council","http://opendatacommunities.org/id/metropolitan-district-council/wolverhampton","Amazon UK Marketplace","22.08","Civic Halls Non Direct Management A/C","5942","Equipment - Purchase","13/01/2017"
"Wolverhampton City Council","http://opendatacommunities.org/id/metropolitan-district-council/wolverhampton","WOLVERHAMPTON CITY COU","21.00","The Little Civic","9399","Services - General Licences","13/01/2017"
"Wolverhampton City Council","http://opendatacommunities.org/id/metropolitan-district-council/wolverhampton","WWW.OMNIWASH.CO.UK","151.66","Education Catering - General Overheads","5722","Catering","13/01/2017"
"Wolverhampton City Council","http://opendatacommunities.org/id/metropolitan-district-council/wolverhampton","DVSA MOT COMP 2","102.50","Fleet Management","9399","Services - Fees and Charges","13/01/2017"
"Wolverhampton City Council","http://opendatacommunities.org/id/metropolitan-district-council/wolverhampton","CHARTERED INST OF LEGA","364.00","Legal Services","8699","Subscriptions","13/01/2017"
"Wolverhampton City Council","http://opendatacommunities.org/id/metropolitan-district-council/wolverhampton","INTELLITEC M V LTD","247.99","Fleet Management","5722","Equipment - Purchase","13/01/2017"
"Wolverhampton City Council","http://opendatacommunities.org/id/metropolitan-district-council/wolverhampton","ALBRIGHTON FEEDS LIMIT","46.00","Pendeford Nature Reserve","5995","Materials","13/01/2017"
"Wolverhampton City Council","http://opendatacommunities.org/id/metropolitan-district-council/wolverhampton","WEST COAST TRAINS","7.60","Ambrosia Project","4112","Public Transport","13/01/2017"
"Wolverhampton City Council","http://opendatacommunities.org/id/metropolitan-district-council/wolverhampton","HSE BOOKS (MAIL ORDER)","20.00","HR Advice","9399","Books","13/01/2017"
"Wolverhampton City Council","http://opendatacommunities.org/id/metropolitan-district-council/wolverhampton","LOYD MORR WILLENHALL","250.00","CIN/CP S17 SW Unit - Area 6","6011","Financial Assistance In Exceptional Circ","13/01/2017"
"Wolverhampton City Council","http://opendatacommunities.org/id/metropolitan-district-council/wolverhampton","WOOD FINISHES DIRECT L","48.23","Maintenance & Technical Materials","5198","Materials","13/01/2017"
"Wolverhampton City Council","http://opendatacommunities.org/id/metropolitan-district-council/wolverhampton","Amazon UK Marketplace","28.32","Members Expenses","5942","Books","13/01/2017"
"Wolverhampton City Council","http://opendatacommunities.org/id/metropolitan-district-council/wolverhampton","B&M RETAIL","27.98","Headstart Phase 3","5310","Equipment - Purchase","13/01/2017"
"Wolverhampton City Council","http://opendatacommunities.org/id/metropolitan-district-council/wolverhampton","LIDDELL ELECTRICAL DIS","63.00","Bilston Town Hall","5065","Equipment - Purchase","13/01/2017"
"Wolverhampton City Council","http://opendatacommunities.org/id/metropolitan-district-council/wolverhampton","ARGOS RETAIL GROUP","61.62","EIP Locality 2","5310","Financial Assistance In Exceptional Circ","13/01/2017"
"Wolverhampton City Council","http://opendatacommunities.org/id/metropolitan-district-council/wolverhampton","ARGOS RETAIL GROUP","24.99","EIP Locality 2","5310","Financial Assistance In Exceptional Circ","13/01/2017"
"Wolverhampton City Council","http://opendatacommunities.org/id/metropolitan-district-council/wolverhampton","Trainline","42.33","Pop Gallery Space","4112","Public Transport","13/01/2017"
"Wolverhampton City Council","http://opendatacommunities.org/id/metropolitan-district-council/wolverhampton","TESCO STORES 5194","-2.00","Towers Outdoor Education Centre","5411","Provisions (Not for resale)","13/01/2017"
"Wolverhampton City Council","http://opendatacommunities.org/id/metropolitan-district-council/wolverhampton","WWW.NISBETS.COM","-242.91","Towers Outdoor Education Centre","5964","Equipment - Purchase","13/01/2017"
"Wolverhampton City Council","http://opendatacommunities.org/id/metropolitan-district-council/wolverhampton","Virgin Trains","8.10","Children & Young People Support Costs","4112","Public Transport","13/01/2017"
"Wolverhampton City Council","http://opendatacommunities.org/id/metropolitan-district-council/wolverhampton","WISHTRAC","234.83","Learning Technologies","5045","Computing - Purchase of Hardware","13/01/2017"
"Wolverhampton City Council","http://opendatacommunities.org/id/metropolitan-district-council/wolverhampton","Amazon UK Marketplace","26.99","Learning Technologies","5942","Computing - Purchase of Hardware","13/01/2017"
"Wolverhampton City Council","http://opendatacommunities.org/id/metropolitan-district-council/wolverhampton","Amazon UK Marketplace","281.00","Learning Technologies","5942","Books","13/01/2017"
"Wolverhampton City Council","http://opendatacommunities.org/id/metropolitan-district-council/wolverhampton","POST OFFICE COUNTER","2.79","Cemeteries","9402","Comms - Postage","13/01/2017"
"Wolverhampton City Council","http://opendatacommunities.org/id/metropolitan-district-council/wolverhampton","WM MORRISONS","47.38","EIP Locality 6","5411","Provisions (Not for resale)","13/01/2017"
"Wolverhampton City Council","http://opendatacommunities.org/id/metropolitan-district-council/wolverhampton","POST OFFICE COUNTER","238.00","Adoption and Residence Team & Allowances","9402","Comms - Postage","13/01/2017"
"Wolverhampton City Council","http://opendatacommunities.org/id/metropolitan-district-council/wolverhampton","HMCTS-TV031","20.00","LAC Transitions Team","9222","Client Allowances","13/01/2017"
"Wolverhampton City Council","http://opendatacommunities.org/id/metropolitan-district-council/wolverhampton","ASDA HOME SHOPPING","196.47","Upper Pendeford Farm Childrens Home","5411","Provisions (Not for resale)","13/01/2017"
"Wolverhampton City Council","http://opendatacommunities.org/id/metropolitan-district-council/wolverhampton","MAILCHIMP","41.72","City Direct","7399","Equipment - Purchase","12/01/2017"
"Wolverhampton City Council","http://opendatacommunities.org/id/metropolitan-district-council/wolverhampton","B & Q 1243","6.75","Public Conveniences","5211","R&M - Departmental planned (external)","12/01/2017"
"Wolverhampton City Council","http://opendatacommunities.org/id/metropolitan-district-council/wolverhampton","WWW.SEVERNTRENTSEARCHE","290.00","Disposal Costs","4900","Services - Professional Fees","12/01/2017"
"Wolverhampton City Council","http://opendatacommunities.org/id/metropolitan-district-council/wolverhampton","WWW.SEVERNTRENTSEARCHE","290.00","Disposal Costs","4900","Services - Professional Fees","12/01/2017"
"Wolverhampton City Council","http://opendatacommunities.org/id/metropolitan-district-council/wolverhampton","ASDA SUPERSTORE","32.11","Gritting","5411","Provisions (Not for resale)","12/01/2017"
"Wolverhampton City Council","http://opendatacommunities.org/id/metropolitan-district-council/wolverhampton","Virgin Trains","8.40","Delivery & OCE Development","4112","Public Transport","12/01/2017"
"Wolverhampton City Council","http://opendatacommunities.org/id/metropolitan-district-council/wolverhampton","COSMO WOLVERHAMPTON","201.94","LAC Transitions Team","5812","Educ Trips, Holidays, Outings, Activity","12/01/2017"
"Wolverhampton City Council","http://opendatacommunities.org/id/metropolitan-district-council/wolverhampton","ARGOS RETAIL GROUP","421.98","EIP Locality 7","5310","Grant Payments","12/01/2017"
"Wolverhampton City Council","http://opendatacommunities.org/id/metropolitan-district-council/wolverhampton","WWW.ICO.GOV.UK","35.00","Members Expenses","9399","Subscriptions","12/01/2017"
"Wolverhampton City Council","http://opendatacommunities.org/id/metropolitan-district-council/wolverhampton","WWW.ICO.GOV.UK","35.00","Members Expenses","9399","Subscriptions","12/01/2017"
"Wolverhampton City Council","http://opendatacommunities.org/id/metropolitan-district-council/wolverhampton","WWW.ICO.GOV.UK","35.00","Members Expenses","9399","Subscriptions","12/01/2017"
"Wolverhampton City Council","http://opendatacommunities.org/id/metropolitan-district-council/wolverhampton","WWW.ICO.GOV.UK","35.00","Members Expenses","9399","Subscriptions","12/01/2017"
"Wolverhampton City Council","http://opendatacommunities.org/id/metropolitan-district-council/wolverhampton","AMAZON UK RETAIL AMAZO","791.66","Strategic ICTS (ICT Serv Budget)","5999","Computing - Purchase of Hardware","12/01/2017"
"Wolverhampton City Council","http://opendatacommunities.org/id/metropolitan-district-council/wolverhampton","B&M RETAIL","5.99","LAC Transitions Team","5310","Client Allowances","12/01/2017"
"Wolverhampton City Council","http://opendatacommunities.org/id/metropolitan-district-council/wolverhampton","Amazon UK Marketplace","64.10","Global Budgets","5942","Stationery","12/01/2017"
"Wolverhampton City Council","http://opendatacommunities.org/id/metropolitan-district-council/wolverhampton","BRITANNIA","162.50","Head of Service - CINCP","7011","Services - Supplies & Services to users","12/01/2017"
"Wolverhampton City Council","http://opendatacommunities.org/id/metropolitan-district-council/wolverhampton","BRITANNIA","-216.67","CIN/CP S17 SW Unit - Area 5","7011","Accommodation Costs","12/01/2017"
"Wolverhampton City Council","http://opendatacommunities.org/id/metropolitan-district-council/wolverhampton","BRITANNIA","216.67","CIN/CP S17 SW Unit - Area 5","7011","Accommodation Costs","12/01/2017"
"Wolverhampton City Council","http://opendatacommunities.org/id/metropolitan-district-council/wolverhampton","Amazon EU","53.63","Civic Halls Non Direct Management A/C","5969","Equipment - Purchase","12/01/2017"
"Wolverhampton City Council","http://opendatacommunities.org/id/metropolitan-district-council/wolverhampton","DUNELM (SOFT FURNISHIN","49.00","Civic Centre Catering","5714","Equipment - Purchase","12/01/2017"
"Wolverhampton City Council","http://opendatacommunities.org/id/metropolitan-district-council/wolverhampton","UNTOUCHABLES","3.75","Education Catering - General Overheads","5231","Materials","12/01/2017"
"Wolverhampton City Council","http://opendatacommunities.org/id/metropolitan-district-council/wolverhampton","TOOLSTATION LTD","8.79","Education Catering - General Overheads","5251","Materials","12/01/2017"
"Wolverhampton City Council","http://opendatacommunities.org/id/metropolitan-district-council/wolverhampton","CIEH LIMITED","50.00","Central Training","8699","Training Expenses","12/01/2017"
"Wolverhampton City Council","http://opendatacommunities.org/id/metropolitan-district-council/wolverhampton","GO CARZ","6.03","Legal Services","4121","Public Transport","12/01/2017"
"Wolverhampton City Council","http://opendatacommunities.org/id/metropolitan-district-council/wolverhampton","THE CARPHONE WAREH","12.69","LAC Transitions Team","4812","Client Allowances","12/01/2017"
"Wolverhampton City Council","http://opendatacommunities.org/id/metropolitan-district-council/wolverhampton","Amazon UK Marketplace","96.30","Assistant Director - Public Health","5942","Books","12/01/2017"
"Wolverhampton City Council","http://opendatacommunities.org/id/metropolitan-district-council/wolverhampton","ARRIVA TRAINS WALE","7.60","Ambrosia Project","4112","Public Transport","12/01/2017"
"Wolverhampton City Council","http://opendatacommunities.org/id/metropolitan-district-council/wolverhampton","E00017100000000","100.00","Hostels / Outreach","6011","Financial Assistance In Exceptional Circ","12/01/2017"
"Wolverhampton City Council","http://opendatacommunities.org/id/metropolitan-district-council/wolverhampton","CARVER/WOLVERHAMPTON/L","53.64","Bilston Town Hall","5211","Equipment - Purchase","12/01/2017"
"Wolverhampton City Council","http://opendatacommunities.org/id/metropolitan-district-council/wolverhampton","POST OFFICE COUNTER","12.80","Learning Disabilities Management","9402","Comms - Postage","12/01/2017"
"Wolverhampton City Council","http://opendatacommunities.org/id/metropolitan-district-council/wolverhampton","TESCO DIRECT","237.47","Towers Outdoor Education Centre","5999","Equipment - Purchase","12/01/2017"
"Wolverhampton City Council","http://opendatacommunities.org/id/metropolitan-district-council/wolverhampton","TESCO STORES 5194","47.45","Towers Outdoor Education Centre","5411","Provisions (Not for resale)","12/01/2017"
"Wolverhampton City Council","http://opendatacommunities.org/id/metropolitan-district-council/wolverhampton","THE INSTITUTE FOR OUTD","90.00","Towers Outdoor Education Centre","8398","Equipment - Purchase","12/01/2017"
"Wolverhampton City Council","http://opendatacommunities.org/id/metropolitan-district-council/wolverhampton","FSPRG.COM INFFUSE.COM","5.05","Technical Support","5734","Computing - Purchase of Software","12/01/2017"
"Wolverhampton City Council","http://opendatacommunities.org/id/metropolitan-district-council/wolverhampton","UBER GB JAN11 3HFCY HE","8.17","Legal Services","4121","Public Transport","12/01/2017"
"Wolverhampton City Council","http://opendatacommunities.org/id/metropolitan-district-council/wolverhampton","UBER GB JAN11 CET6U HE","8.16","Legal Services","4121","Public Transport","12/01/2017"
"Wolverhampton City Council","http://opendatacommunities.org/id/metropolitan-district-council/wolverhampton","Amazon UK Marketplace","13.98","EIP Locality 8","5942","Equipment - Purchase","11/01/2017"
"Wolverhampton City Council","http://opendatacommunities.org/id/metropolitan-district-council/wolverhampton","Trainline","53.86","Youth Offending Team","4112","Public Transport","11/01/2017"
"Wolverhampton City Council","http://opendatacommunities.org/id/metropolitan-district-council/wolverhampton","ARGOS DIRECT","133.32","EIP Locality 6","5964","Equipment - Purchase","11/01/2017"
"Wolverhampton City Council","http://opendatacommunities.org/id/metropolitan-district-council/wolverhampton","ARGOS RETAIL GROUP","270.82","EIP Locality 4","5310","Grant Payments","11/01/2017"
"Wolverhampton City Council","http://opendatacommunities.org/id/metropolitan-district-council/wolverhampton","Amazon Prime","7.99","Strategic ICTS (ICT Serv Budget)","5968","Subscriptions","11/01/2017"
"Wolverhampton City Council","http://opendatacommunities.org/id/metropolitan-district-council/wolverhampton","TESCO STORES 5503","12.00","LAC Transitions Team","5411","Equipment - Purchase","11/01/2017"
"Wolverhampton City Council","http://opendatacommunities.org/id/metropolitan-district-council/wolverhampton","WM MORRISONS","29.33","Upper Pendeford Farm Childrens Home","5411","Provisions (Not for resale)","11/01/2017"
"Wolverhampton City Council","http://opendatacommunities.org/id/metropolitan-district-council/wolverhampton","W M MORRISONS.COM","175.60","Discretionary Fund","5411","Materials","11/01/2017"
"Wolverhampton City Council","http://opendatacommunities.org/id/metropolitan-district-council/wolverhampton","TESCO STORES 5503","6.00","Ernest Bold Court","5411","Cleaning Supplies and Materials","11/01/2017"
"Wolverhampton City Council","http://opendatacommunities.org/id/metropolitan-district-council/wolverhampton","NATWEST BANK","20.00","Ernest Bold Court","6011","Educ Trips, Holidays, Outings, Activity","11/01/2017"
"Wolverhampton City Council","http://opendatacommunities.org/id/metropolitan-district-council/wolverhampton","CT HOME WEDNESFIELD","93.33","LAC Transitions Team","8398","Client Allowances","11/01/2017"
"Wolverhampton City Council","http://opendatacommunities.org/id/metropolitan-district-council/wolverhampton","WM MORRISON 063","30.38","Headstart Phase 3","5411","Provisions (Not for resale)","11/01/2017"
"Wolverhampton City Council","http://opendatacommunities.org/id/metropolitan-district-council/wolverhampton","Amazon UK Marketplace","70.98","Headstart Wolverhampton","5942","Books","11/01/2017"
"Wolverhampton City Council","http://opendatacommunities.org/id/metropolitan-district-council/wolverhampton","Virgin Trains","6.20","Strategic Asset Management - General","4112","Public Transport","11/01/2017"
"Wolverhampton City Council","http://opendatacommunities.org/id/metropolitan-district-council/wolverhampton","TESCO STORES 5194","183.48","Towers Outdoor Education Centre","5411","Provisions (Not for resale)","11/01/2017"
"Wolverhampton City Council","http://opendatacommunities.org/id/metropolitan-district-council/wolverhampton","Amazon UK Marketplace","6.30","Global Budgets","5942","Books","11/01/2017"
"Wolverhampton City Council","http://opendatacommunities.org/id/metropolitan-district-council/wolverhampton","WOLVERHAMPTON ART","6.70","Art Gallery","8299","Training Expenses","11/01/2017"
"Wolverhampton City Council","http://opendatacommunities.org/id/metropolitan-district-council/wolverhampton","BAKER ROSS LTD","64.65","Art Gallery","5970","Materials","11/01/2017"
"Wolverhampton City Council","http://opendatacommunities.org/id/metropolitan-district-council/wolverhampton","ASDA STORES","28.33","LAC Transitions Team","5411","Client Allowances","11/01/2017"
"Wolverhampton City Council","http://opendatacommunities.org/id/metropolitan-district-council/wolverhampton","BRITANNIA","38.04","CIN/CP S17 SW Unit - Area 5","7011","Accommodation Costs","11/01/2017"
"Wolverhampton City Council","http://opendatacommunities.org/id/metropolitan-district-council/wolverhampton","THE COAL AUTHORITY","180.00","Disposal Costs","9399","Services - Professional Fees","11/01/2017"
"Wolverhampton City Council","http://opendatacommunities.org/id/metropolitan-district-council/wolverhampton","WATERSTONES.COM","178.00","Mental Health Assessment & Care Mgmt","5942","Books","11/01/2017"
"Wolverhampton City Council","http://opendatacommunities.org/id/metropolitan-district-council/wolverhampton","EE LIMITED 4415","10.00","Revenues","4812","Comms - Mobile Telephones","11/01/2017"
"Wolverhampton City Council","http://opendatacommunities.org/id/metropolitan-district-council/wolverhampton","NETWORK WEST MIDLANDS","213.00","LAC Transitions Team","9399","Client Allowances","11/01/2017"
"Wolverhampton City Council","http://opendatacommunities.org/id/metropolitan-district-council/wolverhampton","Trainline","116.99","Adoption and Residence Team & Allowances","4112","Public Transport","11/01/2017"
"Wolverhampton City Council","http://opendatacommunities.org/id/metropolitan-district-council/wolverhampton","Trainline","152.90","EIP Locality 7","4112","Public Transport","11/01/2017"
"Wolverhampton City Council","http://opendatacommunities.org/id/metropolitan-district-council/wolverhampton","Amazon UK Marketplace","26.95","EIP Locality 7","5942","Equipment - Purchase","11/01/2017"
"Wolverhampton City Council","http://opendatacommunities.org/id/metropolitan-district-council/wolverhampton","NETWORK WEST MIDLANDS","440.00","CIN/CP S17 SW Unit - Area 3","9399","Client Transport","11/01/2017"
"Wolverhampton City Council","http://opendatacommunities.org/id/metropolitan-district-council/wolverhampton","Virgin Trains","19.10","Information Governance Team","4112","Public Transport","11/01/2017"
"Wolverhampton City Council","http://opendatacommunities.org/id/metropolitan-district-council/wolverhampton","FLYTE SO FANCYG-KITS.C","22.37","Northicote Farm","5995","Materials","11/01/2017"
"Wolverhampton City Council","http://opendatacommunities.org/id/metropolitan-district-council/wolverhampton","Amazon UK Marketplace","33.32","Headstart Phase 3","5942","Equipment - Purchase","10/01/2017"
"Wolverhampton City Council","http://opendatacommunities.org/id/metropolitan-district-council/wolverhampton","Amazon UK Marketplace","7.98","Headstart Wolverhampton","5942","Books","10/01/2017"
"Wolverhampton City Council","http://opendatacommunities.org/id/metropolitan-district-council/wolverhampton","Amazon UK Marketplace","97.49","Headstart Wolverhampton","5942","Books","10/01/2017"
"Wolverhampton City Council","http://opendatacommunities.org/id/metropolitan-district-council/wolverhampton","Amazon UK Marketplace","175.96","Headstart Wolverhampton","5942","Books","10/01/2017"
"Wolverhampton City Council","http://opendatacommunities.org/id/metropolitan-district-council/wolverhampton","Amazon UK Marketplace","39.70","Headstart Wolverhampton","5942","Books","10/01/2017"
"Wolverhampton City Council","http://opendatacommunities.org/id/metropolitan-district-council/wolverhampton","PAYPAL  MACROPACKAG","16.20","Telecare","7399","Comms - Postage","10/01/2017"
"Wolverhampton City Council","http://opendatacommunities.org/id/metropolitan-district-council/wolverhampton","GRO HM PASSPORT OFFICE","19.50","Hostels / Outreach","9399","Services - Fees and Charges","10/01/2017"
"Wolverhampton City Council","http://opendatacommunities.org/id/metropolitan-district-council/wolverhampton","WWW.NISBETS.COM","52.80","Towers Outdoor Education Centre","5964","Equipment - Purchase","10/01/2017"
"Wolverhampton City Council","http://opendatacommunities.org/id/metropolitan-district-council/wolverhampton","Amazon UK Marketplace","24.96","Global Budgets","5942","Stationery","10/01/2017"
"Wolverhampton City Council","http://opendatacommunities.org/id/metropolitan-district-council/wolverhampton","GOLD SUPERSTORE","12.83","Specialist Support Service - North","5251","Equipment - R & M","10/01/2017"
"Wolverhampton City Council","http://opendatacommunities.org/id/metropolitan-district-council/wolverhampton","ASDA HOME SHOPPING","0.66","Ernest Bold Court","5411","Provisions (Not for resale)","10/01/2017"
"Wolverhampton City Council","http://opendatacommunities.org/id/metropolitan-district-council/wolverhampton","ASDA HOME SHOPPING","80.63","Ernest Bold Court","5411","Provisions (Not for resale)","10/01/2017"
"Wolverhampton City Council","http://opendatacommunities.org/id/metropolitan-district-council/wolverhampton","VWO.com","49.92","City Direct","7399","Equipment - Purchase","10/01/2017"
"Wolverhampton City Council","http://opendatacommunities.org/id/metropolitan-district-council/wolverhampton","ARGOS RETAIL GROUP","76.07","EIP Locality 4","5310","Grant Payments","10/01/2017"
"Wolverhampton City Council","http://opendatacommunities.org/id/metropolitan-district-council/wolverhampton","SCREWFIX DIRECT","31.59","Public Conveniences","5211","R&M - Departmental planned (external)","10/01/2017"
"Wolverhampton City Council","http://opendatacommunities.org/id/metropolitan-district-council/wolverhampton","Virgin Trains","260.00","Delivery & OCE Development","4112","Public Transport","10/01/2017"
"Wolverhampton City Council","http://opendatacommunities.org/id/metropolitan-district-council/wolverhampton","POST OFFICE COUNTER","71.00","EIP Locality 5","9402","Comms - Postage","10/01/2017"
"Wolverhampton City Council","http://opendatacommunities.org/id/metropolitan-district-council/wolverhampton","BRITANNIA","38.04","CIN/CP S17 SW Unit - Area 5","7011","Accommodation Costs","10/01/2017"
"Wolverhampton City Council","http://opendatacommunities.org/id/metropolitan-district-council/wolverhampton","Amazon UK Marketplace","19.98","SEN Early Years Team","5942","Equipment - Purchase","10/01/2017"
"Wolverhampton City Council","http://opendatacommunities.org/id/metropolitan-district-council/wolverhampton","NOTEMACHINE","41.67","Ernest Bold Court","6011","Equipment - R & M","10/01/2017"
"Wolverhampton City Council","http://opendatacommunities.org/id/metropolitan-district-council/wolverhampton","G & M HALE (SUNDRIES)","18.20","Discretionary Fund","5992","Materials","10/01/2017"
"Wolverhampton City Council","http://opendatacommunities.org/id/metropolitan-district-council/wolverhampton","G & M HALE LTD","48.25","Discretionary Fund","5992","Materials","10/01/2017"
"Wolverhampton City Council","http://opendatacommunities.org/id/metropolitan-district-council/wolverhampton","G & M HALE LTD","147.25","Discretionary Fund","5992","Materials","10/01/2017"
"Wolverhampton City Council","http://opendatacommunities.org/id/metropolitan-district-council/wolverhampton","LANDSCAPE SERVICES LTD","262.50","Landscape","0780","Subscriptions","10/01/2017"
"Wolverhampton City Council","http://opendatacommunities.org/id/metropolitan-district-council/wolverhampton","DECATHLON UK LTD","99.75","Towers Outdoor Education Centre","5941","Equipment - Purchase","10/01/2017"
"Wolverhampton City Council","http://opendatacommunities.org/id/metropolitan-district-council/wolverhampton","ARGOS RETAIL GROUP","209.99","EIP Locality 7","5310","Grant Payments","10/01/2017"
"Wolverhampton City Council","http://opendatacommunities.org/id/metropolitan-district-council/wolverhampton","Amazon EU","7.49","EIP Locality 7","5969","Equipment - Purchase","10/01/2017"
"Wolverhampton City Council","http://opendatacommunities.org/id/metropolitan-district-council/wolverhampton","Amazon UK Marketplace","74.99","EIP Locality 7","5942","Equipment - Purchase","10/01/2017"
"Wolverhampton City Council","http://opendatacommunities.org/id/metropolitan-district-council/wolverhampton","Amazon UK Marketplace","57.90","EIP Locality 7","5942","Equipment - Purchase","10/01/2017"
"Wolverhampton City Council","http://opendatacommunities.org/id/metropolitan-district-council/wolverhampton","RONTEC BILSTON","9.62","Service Wide","5541","Petrol","09/01/2017"
"Wolverhampton City Council","http://opendatacommunities.org/id/metropolitan-district-council/wolverhampton","AMAZON UK RETAIL AMAZO","16.31","Headstart Phase 3","5999","Books","09/01/2017"
"Wolverhampton City Council","http://opendatacommunities.org/id/metropolitan-district-council/wolverhampton","Amazon UK Marketplace","32.07","Headstart Wolverhampton","5942","Books","09/01/2017"
"Wolverhampton City Council","http://opendatacommunities.org/id/metropolitan-district-council/wolverhampton","AMAZON UK RETAIL AMAZO","155.13","Headstart Phase 3","5999","Equipment - Purchase","09/01/2017"
"Wolverhampton City Council","http://opendatacommunities.org/id/metropolitan-district-council/wolverhampton","BRITANNIA","81.25","Head of Service - CINCP","7011","Services - Supplies & Services to users","09/01/2017"
"Wolverhampton City Council","http://opendatacommunities.org/id/metropolitan-district-council/wolverhampton","Trainline","101.49","Inclusion Support","4112","Public Transport","09/01/2017"
"Wolverhampton City Council","http://opendatacommunities.org/id/metropolitan-district-council/wolverhampton","Amazon UK Marketplace","22.21","Education Business Partnership","5942","Books","09/01/2017"
"Wolverhampton City Council","http://opendatacommunities.org/id/metropolitan-district-council/wolverhampton","Amazon UK Marketplace","19.98","Education Business Partnership","5942","Books","09/01/2017"
"Wolverhampton City Council","http://opendatacommunities.org/id/metropolitan-district-council/wolverhampton","Virgin Trains","26.50","Visitor Economy - Development","4112","Public Transport","09/01/2017"
"Wolverhampton City Council","http://opendatacommunities.org/id/metropolitan-district-council/wolverhampton","CURRYS ONLINE","-149.99","CIN/CP S17 SW Unit - Area 4","5732","Equipment - Purchase","09/01/2017"
"Wolverhampton City Council","http://opendatacommunities.org/id/metropolitan-district-council/wolverhampton","B & Q 1243","23.33","Education Catering - General Overheads","5211","Materials","09/01/2017"
"Wolverhampton City Council","http://opendatacommunities.org/id/metropolitan-district-council/wolverhampton","SAINSBURYS (2340)","10.70","Ekta Day Centre","5411","Provisions (Not for resale)","09/01/2017"
"Wolverhampton City Council","http://opendatacommunities.org/id/metropolitan-district-council/wolverhampton","Amazon EU","75.73","Mental Health Assessment & Care Mgmt","5969","Equipment - Purchase","09/01/2017"
"Wolverhampton City Council","http://opendatacommunities.org/id/metropolitan-district-council/wolverhampton","ASDA PETROL 4949","42.51","Mayoral Expenses","5542","Petrol","09/01/2017"
"Wolverhampton City Council","http://opendatacommunities.org/id/metropolitan-district-council/wolverhampton","P.F. CUSACK TOOL SUPPL","41.00","Signs Non Illuminated","5211","Materials","09/01/2017"
"Wolverhampton City Council","http://opendatacommunities.org/id/metropolitan-district-council/wolverhampton","WICKES","16.66","Northicote Farm","5211","Materials","09/01/2017"
"Wolverhampton City Council","http://opendatacommunities.org/id/metropolitan-district-council/wolverhampton","WWW.NISBETS.COM","138.11","Towers Outdoor Education Centre","5964","Equipment - Purchase","09/01/2017"
"Wolverhampton City Council","http://opendatacommunities.org/id/metropolitan-district-council/wolverhampton","123 REG R/T","13.98","Technical Support","5968","Subscriptions","09/01/2017"
"Wolverhampton City Council","http://opendatacommunities.org/id/metropolitan-district-council/wolverhampton","AMAZON UK RETAIL AMAZO","17.70","Global Budgets","5999","Books","09/01/2017"
"Wolverhampton City Council","http://opendatacommunities.org/id/metropolitan-district-council/wolverhampton","Amazon EU","42.49","Global Budgets","5969","Books","09/01/2017"
"Wolverhampton City Council","http://opendatacommunities.org/id/metropolitan-district-council/wolverhampton","ARGOS LTD","16.66","Global Budgets","5310","Stationery","09/01/2017"
"Wolverhampton City Council","http://opendatacommunities.org/id/metropolitan-district-council/wolverhampton","Amazon UK Marketplace","5.85","Global Budgets","5942","Books","09/01/2017"
"Wolverhampton City Council","http://opendatacommunities.org/id/metropolitan-district-council/wolverhampton","Amazon UK Marketplace","6.10","Global Budgets","5942","Books","09/01/2017"
"Wolverhampton City Council","http://opendatacommunities.org/id/metropolitan-district-council/wolverhampton","Amazon UK Marketplace","4.90","Global Budgets","5942","Books","09/01/2017"
"Wolverhampton City Council","http://opendatacommunities.org/id/metropolitan-district-council/wolverhampton","WOLVERHAMPTON ART","9.85","Art Gallery","8299","Training Expenses","09/01/2017"
"Wolverhampton City Council","http://opendatacommunities.org/id/metropolitan-district-council/wolverhampton","Virgin Trains","63.30","Fostering Team & Allowances","4112","Public Transport","09/01/2017"
"Wolverhampton City Council","http://opendatacommunities.org/id/metropolitan-district-council/wolverhampton","ASDA HOME SHOPPING","-0.37","Ernest Bold Court","5411","Provisions (Not for resale)","09/01/2017"
"Wolverhampton City Council","http://opendatacommunities.org/id/metropolitan-district-council/wolverhampton","ASDA HOME SHOPPING","85.18","Ernest Bold Court","5411","Provisions (Not for resale)","09/01/2017"
"Wolverhampton City Council","http://opendatacommunities.org/id/metropolitan-district-council/wolverhampton","BARCLAYS BANK PLC","250.00","Headstart Phase 3","6011","Financial Assistance In Exceptional Circ","09/01/2017"
"Wolverhampton City Council","http://opendatacommunities.org/id/metropolitan-district-council/wolverhampton","Amazon UK Marketplace","222.77","Headstart Wolverhampton","5942","Books","09/01/2017"
"Wolverhampton City Council","http://opendatacommunities.org/id/metropolitan-district-council/wolverhampton","WM MORRISON 063","10.05","Headstart Phase 3","5411","Equipment - Purchase","09/01/2017"
"Wolverhampton City Council","http://opendatacommunities.org/id/metropolitan-district-council/wolverhampton","Amazon UK Marketplace","119.83","Headstart Wolverhampton","5942","Equipment - Purchase","09/01/2017"
"Wolverhampton City Council","http://opendatacommunities.org/id/metropolitan-district-council/wolverhampton","Amazon UK Marketplace","247.90","Headstart Phase 3","5942","Equipment - Purchase","09/01/2017"
"Wolverhampton City Council","http://opendatacommunities.org/id/metropolitan-district-council/wolverhampton","STARBUCKS","12.75","Artist Rooms","5814","Catering","09/01/2017"
"Wolverhampton City Council","http://opendatacommunities.org/id/metropolitan-district-council/wolverhampton","STARBUCKS","12.71","Artist Rooms","5814","Catering","09/01/2017"
"Wolverhampton City Council","http://opendatacommunities.org/id/metropolitan-district-council/wolverhampton","NETWORK WEST MIDLANDS","220.00","CIN/CP S17 SW Unit - Area 2","9399","Client Transport","09/01/2017"
"Wolverhampton City Council","http://opendatacommunities.org/id/metropolitan-district-council/wolverhampton","WWW.STUFF-UK.NET","39.09","Central Baths","7372","Equipment - Purchase","09/01/2017"
"Wolverhampton City Council","http://opendatacommunities.org/id/metropolitan-district-council/wolverhampton","SAFETYSHOP","178.20","Central Baths","5099","Equipment - Purchase","09/01/2017"
"Wolverhampton City Council","http://opendatacommunities.org/id/metropolitan-district-council/wolverhampton","CMPCARESHOP","13.89","EIP Locality 1","5331","Equipment - Purchase","09/01/2017"
"Wolverhampton City Council","http://opendatacommunities.org/id/metropolitan-district-council/wolverhampton","Trainline","38.45","SEN Special Education Admin","4112","Public Transport","09/01/2017"
"Wolverhampton City Council","http://opendatacommunities.org/id/metropolitan-district-council/wolverhampton","ARGOS DIRECT","141.65","EIP Locality 6","5310","Equipment - Purchase","09/01/2017"
"Wolverhampton City Council","http://opendatacommunities.org/id/metropolitan-district-council/wolverhampton","M and M Direct Ltd","-39.48","EIP Locality 6","5941","Clothing / Uniforms","09/01/2017"
"Wolverhampton City Council","http://opendatacommunities.org/id/metropolitan-district-council/wolverhampton","ARGOS DIRECT","64.07","EIP Locality 6","5964","Equipment - Purchase","09/01/2017"
"Wolverhampton City Council","http://opendatacommunities.org/id/metropolitan-district-council/wolverhampton","NATWEST BANK","20.00","IMPACT","6011","Financial Assistance In Exceptional Circ","09/01/2017"
"Wolverhampton City Council","http://opendatacommunities.org/id/metropolitan-district-council/wolverhampton","WWW.SPORTSEQUIP.CO.UK","203.00","Aldersley Leisure Village","5941","Equipment - Purchase","09/01/2017"
"Wolverhampton City Council","http://opendatacommunities.org/id/metropolitan-district-council/wolverhampton","DERBY C CNCL TEL PAYME","16.29","CIN/CP Social Work Unit - Area 2","9399","Services - Fees and Charges","06/01/2017"
"Wolverhampton City Council","http://opendatacommunities.org/id/metropolitan-district-council/wolverhampton","CAPITAL CLEANING (","35.00","Central Baths","7349","Cleaning Supplies and Materials","06/01/2017"
"Wolverhampton City Council","http://opendatacommunities.org/id/metropolitan-district-council/wolverhampton","Trainline","109.60","Parent / Partnership Service","4112","Public Transport","06/01/2017"
"Wolverhampton City Council","http://opendatacommunities.org/id/metropolitan-district-council/wolverhampton","MOUNTAIN TRAINING","100.00","Towers Outdoor Education Centre","5734","Equipment - Purchase","06/01/2017"
"Wolverhampton City Council","http://opendatacommunities.org/id/metropolitan-district-council/wolverhampton","BAIML","80.00","Towers Outdoor Education Centre","5734","Computing - Purchase of Software","06/01/2017"
"Wolverhampton City Council","http://opendatacommunities.org/id/metropolitan-district-council/wolverhampton","AMI","90.00","Towers Outdoor Education Centre","5734","Equipment - Purchase","06/01/2017"
"Wolverhampton City Council","http://opendatacommunities.org/id/metropolitan-district-council/wolverhampton","AMAZON UK RETAIL AMAZO","15.61","Learning Technologies","5999","Equipment - Purchase","06/01/2017"
"Wolverhampton City Council","http://opendatacommunities.org/id/metropolitan-district-council/wolverhampton","123 REG R/T","27.96","Technical Support","5968","Subscriptions","06/01/2017"
"Wolverhampton City Council","http://opendatacommunities.org/id/metropolitan-district-council/wolverhampton","Amazon UK Marketplace","58.44","Global Budgets","5942","Books","06/01/2017"
"Wolverhampton City Council","http://opendatacommunities.org/id/metropolitan-district-council/wolverhampton","POST OFFICE COUNTER","223.00","LAC Team","9402","Financial Assistance In Exceptional Circ","06/01/2017"
"Wolverhampton City Council","http://opendatacommunities.org/id/metropolitan-district-council/wolverhampton","CO-OPERATIVE TRAVE","1892.98","College of Further Education","6051","Subsistence","06/01/2017"
"Wolverhampton City Council","http://opendatacommunities.org/id/metropolitan-district-council/wolverhampton","Virgin Trains","20.10","Environmental Health - Pub Prot - Gen","4112","Services - Fees and Charges","06/01/2017"
"Wolverhampton City Council","http://opendatacommunities.org/id/metropolitan-district-council/wolverhampton","BARCLAYS BANK PLC","120.00","EIP Locality 8","6011","Grant Payments","06/01/2017"
"Wolverhampton City Council","http://opendatacommunities.org/id/metropolitan-district-council/wolverhampton","Trainline","141.58","Health Protection & NHS Facing","4112","Public Transport","06/01/2017"
"Wolverhampton City Council","http://opendatacommunities.org/id/metropolitan-district-council/wolverhampton","TVLICENSING.CO.UK","121.25","LAC Transitions Team","7392","Client Allowances","06/01/2017"
"Wolverhampton City Council","http://opendatacommunities.org/id/metropolitan-district-council/wolverhampton","VIDEKONLINE.CO.UK","2555.00","Strategic ICTS (ICT Serv Budget)","5722","Equipment - Purchase","06/01/2017"
"Wolverhampton City Council","http://opendatacommunities.org/id/metropolitan-district-council/wolverhampton","ASDA HOME SHOPPING","-5.51","Upper Pendeford Farm Childrens Home","5411","Provisions (Not for resale)","06/01/2017"
"Wolverhampton City Council","http://opendatacommunities.org/id/metropolitan-district-council/wolverhampton","ASDA HOME SHOPPING","190.73","Upper Pendeford Farm Childrens Home","5411","Provisions (Not for resale)","06/01/2017"
"Wolverhampton City Council","http://opendatacommunities.org/id/metropolitan-district-council/wolverhampton","W H SKINNER","535.45","Service Wide","7399","Equipment - Purchase","06/01/2017"
"Wolverhampton City Council","http://opendatacommunities.org/id/metropolitan-district-council/wolverhampton","Amazon UK Marketplace","19.95","Creative Studies Delivery Area","5942","Equipment - Purchase","06/01/2017"
"Wolverhampton City Council","http://opendatacommunities.org/id/metropolitan-district-council/wolverhampton","NATWEST BANK","100.00","EIP Locality 8","6011","Grant Payments","06/01/2017"
"Wolverhampton City Council","http://opendatacommunities.org/id/metropolitan-district-council/wolverhampton","MIDLAND BEARINGS LIMIT","70.00","Maintenance & Technical Materials","8911","Services - Professional Fees","06/01/2017"
"Wolverhampton City Council","http://opendatacommunities.org/id/metropolitan-district-council/wolverhampton","CENTRO","1301.52","Travel Scratch Cards & Rail Warrants","9399","Public Transport","06/01/2017"
"Wolverhampton City Council","http://opendatacommunities.org/id/metropolitan-district-council/wolverhampton","TOOLSTATION LTD","43.12","Education Catering - General Overheads","5251","Equipment - Purchase","06/01/2017"
"Wolverhampton City Council","http://opendatacommunities.org/id/metropolitan-district-council/wolverhampton","HOME BARGAINS","4.97","CIN/CP S17 SW Unit - Area 7","5251","Equipment - Purchase","06/01/2017"
"Wolverhampton City Council","http://opendatacommunities.org/id/metropolitan-district-council/wolverhampton","WEST MID TRAVEL","869.10","Travel Scratch Cards & Rail Warrants","4131","Public Transport","06/01/2017"
"Wolverhampton City Council","http://opendatacommunities.org/id/metropolitan-district-council/wolverhampton","ARGOS RETAIL GROUP","58.88","Upper Pendeford Farm Childrens Home","5310","Equipment - Purchase","06/01/2017"
"Wolverhampton City Council","http://opendatacommunities.org/id/metropolitan-district-council/wolverhampton","APPLIANCEDIRECT CO","1107.68","Upper Pendeford Farm Childrens Home","5734","Computing - Purchase of Software","06/01/2017"
"Wolverhampton City Council","http://opendatacommunities.org/id/metropolitan-district-council/wolverhampton","WWW.NISBETS.COM","41.05","Upper Pendeford Farm Childrens Home","5964","Equipment - Purchase","06/01/2017"
"Wolverhampton City Council","http://opendatacommunities.org/id/metropolitan-district-council/wolverhampton","WWW.EVAQ8.CO.UK","27.36","Upper Pendeford Farm Childrens Home","5941","Equipment - Purchase","06/01/2017"
"Wolverhampton City Council","http://opendatacommunities.org/id/metropolitan-district-council/wolverhampton","ARGOS LTD","29.99","SEN Early Years Team","5310","Equipment - Purchase","06/01/2017"
"Wolverhampton City Council","http://opendatacommunities.org/id/metropolitan-district-council/wolverhampton","MARKS&SPENCER PLC SACA","1.29","Mayoral Expenses","5411","Hospitality","06/01/2017"
"Wolverhampton City Council","http://opendatacommunities.org/id/metropolitan-district-council/wolverhampton","PATISSERIE VALERIE","20.79","Mayoral Expenses","5812","Hospitality","06/01/2017"
"Wolverhampton City Council","http://opendatacommunities.org/id/metropolitan-district-council/wolverhampton","Trainline","20.04","CIN/CP S17 SW Unit - Area 8","4112","Public Transport","06/01/2017"
"Wolverhampton City Council","http://opendatacommunities.org/id/metropolitan-district-council/wolverhampton","WEST COAST TRAINS","52.00","Quality Assurance & Policies","4112","Public Transport","05/01/2017"
"Wolverhampton City Council","http://opendatacommunities.org/id/metropolitan-district-council/wolverhampton","Amazon UK Marketplace","33.51","Expenditure","5942","Books","05/01/2017"
"Wolverhampton City Council","http://opendatacommunities.org/id/metropolitan-district-council/wolverhampton","ASDA STORES","12.50","Ernest Bold Court","5411","Equipment - Purchase","05/01/2017"
"Wolverhampton City Council","http://opendatacommunities.org/id/metropolitan-district-council/wolverhampton","NETWORK WEST MIDLANDS","54.50","IMPACT","9399","Client Transport","05/01/2017"
"Wolverhampton City Council","http://opendatacommunities.org/id/metropolitan-district-council/wolverhampton","Trainline","35.45","CIN/CP S17 SW Unit - Area 2","4112","Public Transport","05/01/2017"
"Wolverhampton City Council","http://opendatacommunities.org/id/metropolitan-district-council/wolverhampton","Trainline","77.88","CIN/CP S17 SW Unit - Area 2","4112","Public Transport","05/01/2017"
"Wolverhampton City Council","http://opendatacommunities.org/id/metropolitan-district-council/wolverhampton","ARGOS RETAIL GROUP","298.93","EIP Locality 1","5310","Equipment - Purchase","05/01/2017"
"Wolverhampton City Council","http://opendatacommunities.org/id/metropolitan-district-council/wolverhampton","TNA DISCOVERY ORDERS","80.40","Condition Surveys","9399","Services - Professional Fees","05/01/2017"
"Wolverhampton City Council","http://opendatacommunities.org/id/metropolitan-district-council/wolverhampton","ARGOS RETAIL GROUP","249.11","EIP Locality 2","5310","Equipment - Purchase","05/01/2017"
"Wolverhampton City Council","http://opendatacommunities.org/id/metropolitan-district-council/wolverhampton","BOOKWHEN","9.00","Craftplay","7372","Computing - Purchase of Software","05/01/2017"
"Wolverhampton City Council","http://opendatacommunities.org/id/metropolitan-district-council/wolverhampton","TESCO STORES 5194","146.85","Towers Outdoor Education Centre","5411","Provisions (Not for resale)","05/01/2017"
"Wolverhampton City Council","http://opendatacommunities.org/id/metropolitan-district-council/wolverhampton","WWW.NISBETS.COM","768.30","Towers Outdoor Education Centre","5964","Equipment - Purchase","05/01/2017"
"Wolverhampton City Council","http://opendatacommunities.org/id/metropolitan-district-council/wolverhampton","Pymt Prcd by BLUESNAP","3321.15","Strategic ICTS (ICT Serv Budget)","5734","Computing - Purchase of Software","05/01/2017"
"Wolverhampton City Council","http://opendatacommunities.org/id/metropolitan-district-council/wolverhampton","Amazon EU","3.63","Strategic ICTS (ICT Serv Budget)","5969","Stationery","05/01/2017"
"Wolverhampton City Council","http://opendatacommunities.org/id/metropolitan-district-council/wolverhampton","RLSS UK LTD","43.00","WV Active Business Support","8398","Services - Professional Fees","05/01/2017"
"Wolverhampton City Council","http://opendatacommunities.org/id/metropolitan-district-council/wolverhampton","Amazon UK Marketplace","13.20","Bert Williams Leisure Centre","5942","Stationery","05/01/2017"
"Wolverhampton City Council","http://opendatacommunities.org/id/metropolitan-district-council/wolverhampton","Amazon UK Marketplace","4.58","Aldersley Leisure Village","5942","Stationery","05/01/2017"
"Wolverhampton City Council","http://opendatacommunities.org/id/metropolitan-district-council/wolverhampton","ASDA SUPERSTORE","100.00","CIN/CP S17 SW Unit - Area 3","5411","Provisions (Not for resale)","05/01/2017"
"Wolverhampton City Council","http://opendatacommunities.org/id/metropolitan-district-council/wolverhampton","ASDA SUPERSTORE","200.00","CIN/CP S17 SW Unit - Area 3","5411","Provisions (Not for resale)","05/01/2017"
"Wolverhampton City Council","http://opendatacommunities.org/id/metropolitan-district-council/wolverhampton","Amazon UK Marketplace","5.36","Blakenhall Commty & Healthy Living Ctr","5942","Books","05/01/2017"
"Wolverhampton City Council","http://opendatacommunities.org/id/metropolitan-district-council/wolverhampton","AMAZON UK RETAIL AMAZO","29.99","Learning Technologies","5999","Equipment - Purchase","05/01/2017"
"Wolverhampton City Council","http://opendatacommunities.org/id/metropolitan-district-council/wolverhampton","Amazon EU","49.58","Learning Technologies","5969","Equipment - Purchase","05/01/2017"
"Wolverhampton City Council","http://opendatacommunities.org/id/metropolitan-district-council/wolverhampton","CO-OPERATIVE TRAVE","1946.91","College of Further Education","6051","Subsistence","05/01/2017"
"Wolverhampton City Council","http://opendatacommunities.org/id/metropolitan-district-council/wolverhampton","CARESHOP","106.02","Specialist Support Service - North","5999","Cleaning Supplies and Materials","05/01/2017"
"Wolverhampton City Council","http://opendatacommunities.org/id/metropolitan-district-council/wolverhampton","WEST MIDLANDS EMPLOYER","50.00","Central Training","7392","Training Expenses","05/01/2017"
"Wolverhampton City Council","http://opendatacommunities.org/id/metropolitan-district-council/wolverhampton","ASDA SUPERSTORE","11.50","CIN/CP S17 SW Unit - Area 5","5411","Provisions (Not for resale)","05/01/2017"
"Wolverhampton City Council","http://opendatacommunities.org/id/metropolitan-district-council/wolverhampton","ASDA SUPERSTORE","13.11","CIN/CP S17 SW Unit - Area 5","5411","Provisions (Not for resale)","05/01/2017"
"Wolverhampton City Council","http://opendatacommunities.org/id/metropolitan-district-council/wolverhampton","ASDA SUPERSTORE","26.22","CIN/CP S17 SW Unit - Area 5","5411","Provisions (Not for resale)","05/01/2017"
"Wolverhampton City Council","http://opendatacommunities.org/id/metropolitan-district-council/wolverhampton","PREMIER INN","-69.57","Adoption and Residence Team & Allowances","3811","Accommodation Costs","05/01/2017"
"Wolverhampton City Council","http://opendatacommunities.org/id/metropolitan-district-council/wolverhampton","PREMIER INN","81.24","Adoption and Residence Team & Allowances","3811","Accommodation Costs","05/01/2017"
"Wolverhampton City Council","http://opendatacommunities.org/id/metropolitan-district-council/wolverhampton","PREMIER INN","69.57","Adoption and Residence Team & Allowances","3811","Accommodation Costs","05/01/2017"
"Wolverhampton City Council","http://opendatacommunities.org/id/metropolitan-district-council/wolverhampton","SCREWFIX DIRECT LT","19.99","Cleaning of Buildings - General","5211","Equipment - Purchase","04/01/2017"
"Wolverhampton City Council","http://opendatacommunities.org/id/metropolitan-district-council/wolverhampton","ARGOS RETAIL GROUP","26.99","EIP Locality 1","5310","Equipment - Purchase","04/01/2017"
"Wolverhampton City Council","http://opendatacommunities.org/id/metropolitan-district-council/wolverhampton","NATWEST BANK","40.00","EIP Locality 2","6011","Financial Assistance In Exceptional Circ","04/01/2017"
"Wolverhampton City Council","http://opendatacommunities.org/id/metropolitan-district-council/wolverhampton","Amazon UK Marketplace","7.49","LAC Transitions Team","5942","Client Allowances","04/01/2017"
"Wolverhampton City Council","http://opendatacommunities.org/id/metropolitan-district-council/wolverhampton","TESCO STORES 5194","66.68","Towers Outdoor Education Centre","5411","Provisions (Not for resale)","04/01/2017"
"Wolverhampton City Council","http://opendatacommunities.org/id/metropolitan-district-council/wolverhampton","BOOKWHEN","180.00","Learning Technologies","7372","Computing - Purchase of Software","04/01/2017"
"Wolverhampton City Council","http://opendatacommunities.org/id/metropolitan-district-council/wolverhampton","ROYAL BK OF SCOTLAND","150.00","46a, Second Avenue, Low Hill","6011","Financial Assistance In Exceptional Circ","04/01/2017"
"Wolverhampton City Council","http://opendatacommunities.org/id/metropolitan-district-council/wolverhampton","B & Q 1243","20.00","Learning Disabilities Management","5211","Equipment - R & M","04/01/2017"
"Wolverhampton City Council","http://opendatacommunities.org/id/metropolitan-district-council/wolverhampton","DACS LTD","88.80","Jane & Louise Wilson","5971","Marketing \ Non-staff advertising","04/01/2017"
"Wolverhampton City Council","http://opendatacommunities.org/id/metropolitan-district-council/wolverhampton","THE NEWBURY HOTEL","50.00","LAC Team","7011","Services - Supplies & Services to users","04/01/2017"
"Wolverhampton City Council","http://opendatacommunities.org/id/metropolitan-district-council/wolverhampton","THE QUEEN VICTORIA HOT","98.00","Head of Service - CINCP","7011","Services - Supplies & Services to users","04/01/2017"
"Wolverhampton City Council","http://opendatacommunities.org/id/metropolitan-district-council/wolverhampton","REGISTRARS OFFICE","7.00","Head of Service - CINCP","8299","Services - Professional Fees","04/01/2017"
"Wolverhampton City Council","http://opendatacommunities.org/id/metropolitan-district-council/wolverhampton","JMPRIME.CO.UK","224.00","Parks - Ranger Service","5085","Equipment - Purchase","04/01/2017"
"Wolverhampton City Council","http://opendatacommunities.org/id/metropolitan-district-council/wolverhampton","Amazon UK Marketplace","3.99","Ground Maintenance Overheads","5942","Materials","04/01/2017"
"Wolverhampton City Council","http://opendatacommunities.org/id/metropolitan-district-council/wolverhampton","TIMPSON LTD","9.00","Revenues","7251","Equipment - Purchase","04/01/2017"
"Wolverhampton City Council","http://opendatacommunities.org/id/metropolitan-district-council/wolverhampton","TFM FARM & COUNTRY SUP","155.76","Northicote Farm","5399","Equipment - Purchase","04/01/2017"
"Wolverhampton City Council","http://opendatacommunities.org/id/metropolitan-district-council/wolverhampton","TRAINLINE","-191.60","Adoption and Residence Team & Allowances","4112","Public Transport","04/01/2017"
"Wolverhampton City Council","http://opendatacommunities.org/id/metropolitan-district-council/wolverhampton","Trainline","207.16","Adoption and Residence Team & Allowances","4112","Public Transport","04/01/2017"
"Wolverhampton City Council","http://opendatacommunities.org/id/metropolitan-district-council/wolverhampton","Trainline","207.16","Adoption and Residence Team & Allowances","4112","Public Transport","04/01/2017"
"Wolverhampton City Council","http://opendatacommunities.org/id/metropolitan-district-council/wolverhampton","BARONS COURT HOTEL","63.33","CIN/CP S17 SW Unit - Area 6","7011","Accommodation Costs","04/01/2017"
"Wolverhampton City Council","http://opendatacommunities.org/id/metropolitan-district-council/wolverhampton","Virgin Trains","78.30","Black Country Transport Director","4112","Public Transport","04/01/2017"
"Wolverhampton City Council","http://opendatacommunities.org/id/metropolitan-district-council/wolverhampton","Virgin Trains","98.80","Democratic Support","4112","Public Transport","04/01/2017"
"Wolverhampton City Council","http://opendatacommunities.org/id/metropolitan-district-council/wolverhampton","TRELLO","4.19","City Direct","5045","Computing - Purchase of Hardware","04/01/2017"
"Wolverhampton City Council","http://opendatacommunities.org/id/metropolitan-district-council/wolverhampton","ARGOS LTD","19.98","EIP Locality 4","5310","Grant Payments","04/01/2017"
"Wolverhampton City Council","http://opendatacommunities.org/id/metropolitan-district-council/wolverhampton","Amazon UK Marketplace","4.33","Aldersley Leisure Village","5942","Stationery","04/01/2017"
"Wolverhampton City Council","http://opendatacommunities.org/id/metropolitan-district-council/wolverhampton","KIDDICARE","268.96","CIN/CP S17 SW Unit - Area 3","5719","Equipment - Purchase","04/01/2017"
"Wolverhampton City Council","http://opendatacommunities.org/id/metropolitan-district-council/wolverhampton","TRAVELODGE","46.00","LAC Team","3615","Services - Supplies & Services to users","04/01/2017"
"Wolverhampton City Council","http://opendatacommunities.org/id/metropolitan-district-council/wolverhampton","WILKO RETAIL LIMIT","4.10","Service Wide","5722","Equipment - Purchase","04/01/2017"
"Wolverhampton City Council","http://opendatacommunities.org/id/metropolitan-district-council/wolverhampton","ROYAL MAIL CUSTOMER","17.50","Service Wide","9402","Comms - Postage","04/01/2017"
"Wolverhampton City Council","http://opendatacommunities.org/id/metropolitan-district-council/wolverhampton","VERIFONE TAXI/PRIVATE","115.50","Leonardo Da Vinci Project","4121","Client Transport","04/01/2017"
"Wolverhampton City Council","http://opendatacommunities.org/id/metropolitan-district-council/wolverhampton","ASDA HOME SHOPPING","-2.81","Ernest Bold Court","5411","Provisions (Not for resale)","03/01/2017"
"Wolverhampton City Council","http://opendatacommunities.org/id/metropolitan-district-council/wolverhampton","ASDA HOME SHOPPING","100.67","Ernest Bold Court","5411","Provisions (Not for resale)","03/01/2017"
"Wolverhampton City Council","http://opendatacommunities.org/id/metropolitan-district-council/wolverhampton","GOOGLE  SVCSAPPS_wolve","3.30","Civic Halls Non Direct Management A/C","5968","Computing - Consumables","03/01/2017"
"Wolverhampton City Council","http://opendatacommunities.org/id/metropolitan-district-council/wolverhampton","SAINSBURYS SACAT 2040","16.30","Duke Street Bungalows","5411","Provisions (Not for resale)","03/01/2017"
"Wolverhampton City Council","http://opendatacommunities.org/id/metropolitan-district-council/wolverhampton","UXPIN.com, +4869493995","99.55","City Direct","7372","Computing - Purchase of Software","03/01/2017"
"Wolverhampton City Council","http://opendatacommunities.org/id/metropolitan-district-council/wolverhampton","THE COAL AUTHORITY","1080.00","Legal Services","9399","Services - Fees and Charges","02/01/2017"
"Wolverhampton City Council","http://opendatacommunities.org/id/metropolitan-district-council/wolverhampton","Amazon Prime","-7.99","Ground Maintenance Overheads","5968","Subscriptions","02/01/2017"
"Wolverhampton City Council","http://opendatacommunities.org/id/metropolitan-district-council/wolverhampton","Amazon UK Marketplace","9.97","Arbor Scheme","5942","Materials","02/01/2017"
"Wolverhampton City Council","http://opendatacommunities.org/id/metropolitan-district-council/wolverhampton","Amazon UK Marketplace","9.13","Street Cleansing Overheads","5942","Materials","02/01/2017"
"Wolverhampton City Council","http://opendatacommunities.org/id/metropolitan-district-council/wolverhampton","REGISTRARS OFFICE","20.00","Legal Services","8299","Training Expenses","02/01/2017"
"Wolverhampton City Council","http://opendatacommunities.org/id/metropolitan-district-council/wolverhampton","B&M RETAIL LTD","127.42","LAC Transitions Team","5310","Client Allowances","02/01/2017"
"Wolverhampton City Council","http://opendatacommunities.org/id/metropolitan-district-council/wolverhampton","ARGOS LTD","207.50","LAC Transitions Team","5310","Client Allowances","02/01/2017"
"Wolverhampton City Council","http://opendatacommunities.org/id/metropolitan-district-council/wolverhampton","ARGOS LTD","62.37","LAC Transitions Team","5310","Client Allowances","02/01/2017"
"Wolverhampton City Council","http://opendatacommunities.org/id/metropolitan-district-council/wolverhampton","ASDA SUPERSTORE","12.08","LAC Transitions Team","5411","Client Allowances","02/01/2017"
"Wolverhampton City Council","http://opendatacommunities.org/id/metropolitan-district-council/wolverhampton","ARGOS RETAIL GROUP","80.63","EIP Locality 4","5310","Grant Payments","02/01/2017"
"Wolverhampton City Council","http://opendatacommunities.org/id/metropolitan-district-council/wolverhampton","ARGOS RETAIL GROUP","234.93","EIP Locality 4","5310","Grant Payments","02/01/2017"
"Wolverhampton City Council","http://opendatacommunities.org/id/metropolitan-district-council/wolverhampton","B & Q 1243","24.72","Public Conveniences","5211","R&M - Departmental planned (external)","02/01/2017"
"Wolverhampton City Council","http://opendatacommunities.org/id/metropolitan-district-council/wolverhampton","FACEBK 8PVZX9AA82","6.17","Communications & Marketing - General","7311","Marketing \ Non-staff advertising","02/01/2017"
"Wolverhampton City Council","http://opendatacommunities.org/id/metropolitan-district-council/wolverhampton","FACEBK 7PVZX9AA82","89.72","Communications & Marketing - General","7311","Marketing \ Non-staff advertising","02/01/2017"
"Wolverhampton City Council","http://opendatacommunities.org/id/metropolitan-district-council/wolverhampton","FACEBK Y2Y6QBSAR2","34.89","Communications & Marketing - General","7311","Marketing \ Non-staff advertising","02/01/2017"
"Wolverhampton City Council","http://opendatacommunities.org/id/metropolitan-district-council/wolverhampton","HUGHES","129.56","LAC Transitions Team","5732","Client Allowances","02/01/2017"
"Wolverhampton City Council","http://opendatacommunities.org/id/metropolitan-district-council/wolverhampton","CUMMINGS BROTHERS LOCK","8.33","Wholesale Market Facilities Management","7399","R&M - Departmental planned (external)","02/01/2017"
"Wolverhampton City Council","http://opendatacommunities.org/id/metropolitan-district-council/wolverhampton","Amazon UK Marketplace","4.73","LAC Transitions Team","5942","Client Allowances","02/01/2017"
"Wolverhampton City Council","http://opendatacommunities.org/id/metropolitan-district-council/wolverhampton","123 REG R/T","13.98","Technical Support","5968","Subscriptions","02/01/2017"
"Wolverhampton City Council","http://opendatacommunities.org/id/metropolitan-district-council/wolverhampton","ASDA HOME SHOPPING","-0.11","Ernest Bold Court","5411","Provisions (Not for resale)","02/01/2017"
"Wolverhampton City Council","http://opendatacommunities.org/id/metropolitan-district-council/wolverhampton","ASDA HOME SHOPPING","93.89","Ernest Bold Court","5411","Provisions (Not for resale)","02/01/2017"
"Wolverhampton City Council","http://opendatacommunities.org/id/metropolitan-district-council/wolverhampton","FACEBK 84Z75AEF92","403.40","Civic Halls Non Direct Management A/C","7311","Marketing \ Non-staff advertising","02/01/2017"
"Wolverhampton City Council","http://opendatacommunities.org/id/metropolitan-district-council/wolverhampton","WWW.SEVERNTRENTSEARCHE","348.00","Legal Services","4900","Electricity","02/01/2017"
"Wolverhampton City Council","http://opendatacommunities.org/id/metropolitan-district-council/wolverhampton","WWW.SEVERNTRENTSEARCHE","348.00","Legal Services","4900","Electricity","02/01/2017"
